{"text_format":"1","workbook":"xlsx","n_sheets":8,"sheets":["Accueil","Calculs - Ajustements","Info - Valeurs d'ajustement","Info - Majorations applicables","Versions du fichier","Menus","Ajustements","Log"],"not_rendered":{"charts":0,"images":7,"macros":1,"external_links":0,"defined_names":29,"comments":2,"pivot_tables":0},"unopened":[],"bounds":{"document_bytes":16777216,"sheet_cells":100000,"rows_first":2000,"rows_last":500,"rows_between":2000,"halvings":0,"cell_chars":16384,"cell_head_chars":4096},"cells_cut":0,"cells_raw":0,"read":"whole","date_system":"1900"}

{"sheet":"Accueil","index":0,"n_rows":19,"n_cols":3,"rows_kept":19,"cut":false,"hidden":false,"merged":[[15,2,16,14],[13,2,13,14],[18,2,18,14]]}
[]
[]
[]
[]
[]
[]
[]
[]
[]
[]
[]
[]
[]
[null,null,"Annexe au calcul des ajustements applicables aux taux des traitements non commerciaux 2022-2023\nForêt publique\n"]
[]
[null,null,"L'activation du contenu de ce fichier est requise afin d'assurer l'exécution des macro-commandes qui sont nécessaires\nà son bon fonctionnement."]
[]
[]
[null,null,"https://support.office.com/fr-fr/article/activer-ou-d%C3%A9sactiver-les-macros-dans-les-fichiers-office-12b036fd-d140-4e74-b45e-16fed1a7e5c6"]

{"sheet":"Calculs - Ajustements","index":1,"n_rows":138,"n_cols":7,"rows_kept":138,"cut":false,"hidden":true,"merged":[[130,2,130,4],[7,0,7,4],[8,0,8,6],[9,0,9,5],[10,0,10,5],[22,0,22,6],[23,0,23,6],[25,0,25,5],[1,0,1,6],[17,0,17,6],[18,0,18,6],[20,0,20,5],[21,0,21,5],[28,0,28,6],[29,0,29,5],[27,0,27,6],[30,0,30,5],[24,0,24,4],[19,0,19,5],[26,0,26,5],[52,3,52,4],[47,0,47,5],[44,0,44,5],[32,0,32,6],[0,0,0,6],[3,0,3,6],[4,0,4,5],[5,0,5,5],[2,0,2,5],[13,0,13,6],[14,0,14,6],[15,0,15,5],[16,0,16,5],[12,0,12,5],[6,0,6,4],[11,0,11,5],[31,0,31,5],[40,0,40,6],[42,0,42,4],[33,0,33,6],[34,0,34,5],[43,0,43,5],[123,2,123,4],[122,2,122,4],[119,0,119,4],[105,0,105,5],[49,0,49,6],[62,0,62,5],[58,0,58,5],[113,0,113,5],[114,0,115,5],[114,6,115,6],[96,0,96,6],[97,0,97,6],[98,0,98,5],[101,0,101,6],[102,0,102,6],[50,0,50,6],[82,0,82,6],[83,0,83,6],[91,0,91,6],[92,0,92,6],[103,0,103,5],[100,0,100,5],[99,0,99,5],[36,0,36,6],[51,0,51,4],[116,0,116,5],[106,0,106,6],[107,0,107,6],[108,0,108,6],[109,0,109,6],[110,0,112,5],[110,6,112,6],[104,0,104,5],[94,0,94,2],[94,3,94,4],[95,0,95,5],[45,0,45,6],[48,0,48,5],[77,0,77,5],[78,0,78,6],[79,0,79,6],[53,0,53,5],[80,0,80,5],[54,0,54,6],[73,0,73,6],[59,0,59,6],[60,0,60,6],[61,0,61,5],[56,0,56,6],[57,0,57,5],[46,0,46,6],[52,0,52,2],[74,0,74,6],[75,0,75,5],[76,0,76,5],[68,0,68,6],[37,0,37,6],[38,0,38,5],[41,0,41,6],[35,0,35,5],[39,0,39,5],[55,0,55,6],[63,0,63,6],[64,0,64,6],[93,0,93,5],[87,0,87,6],[89,0,89,5],[90,0,90,5],[84,0,84,5],[85,0,85,5],[86,0,86,6],[88,0,88,5],[69,0,69,6],[70,0,70,4],[81,0,81,5],[65,0,65,5],[66,0,66,5],[67,0,67,5],[71,0,71,5],[72,0,72,5]]}
[]
["Annexe au calcul des ajustements applicables aux taux des traitements non commerciaux 2022-2023\nForêt publique\n"]
[" *** Veuillez saisir les informations dans les cellules blanches seulement ***",null,null,null,null,null,"Version 3 : 2022-10-03"]
["Identification et paramètres du calcul des ajustements admissibles"]
["Nom du fichier de l'annexe au calcul du taux TSNC  pour lequel les ajustements sont calculés"]
["Est-ce que l'ajustement au traitement d'exécution doit être calculé avec un bloc technique de suivi de conformité ?\nCalcul des ajustements pour le taux d'exécution  seulement ou calcul des ajustements combinés pour le taux d'exécution et le suivi de conformité (incluant la délimitation physique ou virtuelle, le cas échéant).",null,null,null,null,null,"Inscrire une valeur"]
["Famille de traitements ou type d'activités\nMode d'attribution du contrat : ERTS (gré à gré)",null,null,null,null,{"$f":"IFERROR(IF(EXACT($G$6,Menus!$A$10),\"Famille_Type_EXE_SUIVI\",IF(EXACT($G$6,Menus!$A$11),\"Famille_Type_Tous\")),\"Famille_Type_Tous\")","v":false}]
["Mode d'attribution du contrat",null,null,null,null,{"$f":"IF(OR(EXACT(UPPER($G$7),UPPER(Menus!$A$15)),,EXACT(UPPER($G$7),UPPER(Menus!$A$17)),EXACT(UPPER($G$7),UPPER(Menus!$A$18)),EXACT(UPPER($G$7),UPPER(Menus!$A$19)),EXACT(UPPER($G$7),UPPER(Menus!$A$20)),EXACT(UPPER($G$7),UPPER(Menus!$A$21)),EXACT(UPPER($G$7),UPPER(Menus!$A$22))),\"Mode_attribution\",\"Inscrire une valeur\")","v":"Inscrire une valeur"},"ERTS (gré à gré)"]
["Valeurs originales de l'annexe au calcul des taux TSNC"]
["Taux d'exécution de base ou taux de suivi de conformité ou valeur par unité de mesure payable ($/Unité)\n(hectare, Mplants, Mmicrosites, PE ou kilomètre)"]
["Taux de certaines majorations à l'exécution (∑), si applicable ($/Unité)\nInscrire le montant par unité de mesure payable (hectare, Mplants, Mmicrosites, PE ou kilomètre) qui correspond à la sommation des majorations suivantes, selon la famille de traitements ou le type d'activités :\n \n• EC EAF : PE2 et activité de Délimitation physique (ruban) des sentiers de débardage\n• Éducation de peuplement : PE2 et DEGPM\n• Régénération artificielle : PE2 et RAPM\n• Traitements du site : PA0, PA1, PA2, PE1, PE2, PE3, PE4, DRAP et DMOD\n• Inventaire avant traitement, martelage et travaux techniques autres : aucune majoration"]
["Nombre total d'unités de mesure payables du traitement ou du type d'activité\n(hectare, Mplants, Mmicrosites, PE ou kilomètre)"]
["Taux d'exécution de base ou taux de suivi de conformité ou valeur et majorations admissibles, le cas échéant ($/Unité)",null,null,null,null,null,{"$f":"IFERROR(ROUND(SUM($G$10:$G$11),2),0)","v":0}]
["AO - Tous"]
["• Acquisition d’équipements de protection individuelle et sanitaire pour la réalisation des traitements excluant les besoins pour le transport,\n   l’hébergement et la manutention des plants\n• Gestion, planification, sensibilisation, formation et logistique\n• Manutention des plants, si applicable"]
["Ajustement (%)",null,null,null,null,null,{"$f":"IFERROR(IF(EXACT($G$8,Menus!$A$4)=FALSE,VLOOKUP(CONCATENATE($G$7,\" — \",$G$8),Ajustement_1_EPIS_ERTS__125_AO,3,FALSE),0),0)","v":0}]
["Ajustement ($/Unité)",null,null,null,null,null,{"$f":"IFERROR($G$16*$G$13,0)","v":0}]
["AO - Tous"]
["Transport des travailleurs"]
["Type de transport"]
["Ajustement (%)",null,null,null,null,null,{"$f":"IFERROR(VLOOKUP(CONCATENATE($G$7,\" — \",$G$8,\" — \",$G$20),Ajustement_3_Transport_Tous,3,FALSE),0)","v":0}]
["Ajustement ($/Unité)",null,null,null,null,null,{"$f":"IFERROR($G$13*$G$21,0)","v":0}]
["AO - AVEC Hébergement"]
["Hébergement des travailleurs"]
["Type d'hébergement",null,null,null,null,{"$f":"IFERROR(IF(EXACT($G$8,Menus!$A$3)=TRUE,\"Hebergement_SANS\",\"Hebergement_AO\"),\"Hebergement_AO\")","v":"Hebergement_AO"}]
["Ajustement (%)",null,null,null,null,null,{"$f":"IFERROR(VLOOKUP(CONCATENATE($G$7,\" — \",$G$8&\"NA\",\" — \",$G$25),Ajustement_4_Hebergement_Tous,3,FALSE),0)","v":0}]
["Ajustement ($/Unité)",null,null,null,null,null,{"$f":"IFERROR($G$13*$G$26,0)","v":0}]
["ERTS (gré à gré) - Tous"]
["Hausse des prix"]
["Ajustement (%)",null,null,null,null,null,{"$f":"IFERROR(IF(EXACT($G$8,Menus!$A$4),VLOOKUP(CONCATENATE($G$7,\" — \",$G$8),Ajustement_6_Carburant_ERTS,3,FALSE),0),0)","v":0}]
["Ajustement ($/Unité)",null,null,null,null,null,{"$f":"IFERROR($G$13*$G$30,0)","v":0}]
["Taux ajusté pour hausse des prix ($/Unité)",null,null,null,null,null,{"$f":"IFERROR(SUM($G$13)*(1+$G$30),0)","v":0}]
["ERTS (gré à gré) - Tous"]
["Acquisition d’équipements de protection individuelle et sanitaire pour la réalisation des traitements excluant les besoins pour le transport et l’hébergement"]
["Ajustement (%)",null,null,null,null,null,{"$f":"IFERROR(IF(EXACT($G$8,Menus!$A$4),VLOOKUP(CONCATENATE($G$7,\" — \",$G$8),Ajustement_1_EPIS_ERTS__125_AO,3,FALSE),0),0)","v":0}]
["Ajustement ($/Unité)",null,null,null,null,null,{"$f":"IFERROR($G$32*$G$35,0)","v":0}]
["ERTS (gré à gré) - Tous"]
["Gestion, planification, sensibilisation, formation et logistique"]
["Ajustement (%)",null,null,null,null,null,{"$f":"IFERROR(IF(EXACT($G$8,Menus!$A$4),VLOOKUP(CONCATENATE($G$7,\" — \",$G$8),Ajustement_2_GPSFL_ERTS,3,FALSE),0),0)","v":0}]
["Ajustement ($/Unité)",null,null,null,null,null,{"$f":"IFERROR($G$32*$G$39,0)","v":0}]
["ERTS (gré à gré) - Tous"]
["Transport des travailleurs (adaptation des véhicules et équipement de protection individuelle)"]
["Type de transport",null,null,null,null,{"$f":"IF(OR(EXACT(UPPER($G$7),UPPER(Menus!$A$17)),EXACT(UPPER($G$7),UPPER(Menus!$A$20))),\"Transport_ERTS_TC\",\"Transport_ERTS_Pas_TC\")","v":"Transport_ERTS_Pas_TC"}]
["Ajustement (%)",null,null,null,null,null,{"$f":"IFERROR(VLOOKUP(CONCATENATE($G$7,\" — \",$G$8,\" — \",$G$43),Ajustement_3_Transport_Tous,3,FALSE),0)","v":0}]
["Ajustement ($/Unité)",null,null,null,null,null,{"$f":"IFERROR($G$32*$G$44,0)","v":0}]
["ERTS (gré à gré) - Régénération artificielle"]
["Manutention des plants"]
["Ajustement (%)",null,null,null,null,null,{"$f":"IFERROR(VLOOKUP(CONCATENATE($G$7,\" — \",$G$8),Ajustement_5_Manutention_plants_ERTS,3,FALSE),0)","v":0}]
["Ajustement ($/Unité)",null,null,null,null,null,{"$f":"IFERROR($G$32*$G$48,0)","v":0}]
["ERTS (gré à gré) - Tous"]
["Hébergement des travailleurs"]
["Type d'hébergement",null,null,null,null,{"$f":"IFERROR(IF(EXACT(UPPER($G$43),UPPER(Menus!#REF!)),\"Hebergement_ERTS_TC\",\"Hebergement_ERTS\"),\"Hebergement_ERTS\")","v":"Hebergement_ERTS"}]
["Ajustement (%)",null,null,{"$f":"IF(EXACT(UPPER($G$8),UPPER(Menus!$A$4)),IF(OR(EXACT(UPPER($G$52),UPPER(Menus!$A$7)),EXACT(UPPER($G$52),UPPER(Menus!$A$33))),\"\",\"Maximum admissible : \"),\"\")","v":"Maximum admissible : "},null,{"$f":"IFERROR(IF(EXACT(UPPER($G$8),UPPER(Menus!$A$4)),IF(OR(EXACT(UPPER($G$52),UPPER(Menus!$A$7)),EXACT(UPPER($G$52),UPPER(Menus!$A$33))),\"\",VLOOKUP(CONCATENATE($G$7,\" — \",$G$8,\" — \",$G$52),Ajustement_4_Hebergement_Tous,3,FALSE)),\"\"),0)","v":0},"Inscrire une valeur"]
["Ajustement ($/Unité)",null,null,null,null,null,{"$f":"IF(EXACT(UPPER($G$52),UPPER(Menus!$A$33)),0,IF($G$53<=$F$53,$G$32*$G$53,0))","v":0}]
["Bloc technique « suivi de conformité » avec l'exécution du traitement"]
[]
["Valeurs originales de l'annexe au calcul des taux TSNC — Bloc technique « suivi de conformité »"]
["Taux de suivi de conformité ($/Unité)\n(hectare, Mplants, Mmicrosites ou kilomètre)"]
["Nombre total d'unités de mesure payables du traitement ou de l'activité\n(hectare, Mplants, Mmicrosites ou kilomètre)"]
["AO - Bloc technique - Tous"]
["• Acquisition d’équipements de protection individuelle et sanitaire pour la réalisation des traitements excluant les besoins pour le transport,\n   l’hébergement et la manutention des plants\n• Gestion, planification, sensibilisation, formation et logistique\n• Manutention des plants, si applicable"]
["Ajustement (%)",null,null,null,null,null,{"$f":"IFERROR(IF(AND(EXACT(UPPER($G$8),UPPER(Menus!$A$4))=FALSE,EXACT(UPPER($G$6),UPPER(Menus!$A$10))),VLOOKUP(CONCATENATE(Menus!$A$22,\" — \",$G$8),Ajustement_1_EPIS_ERTS__125_AO,3,FALSE),0),0)","v":0}]
["Ajustement ($/Unité)",null,null,null,null,null,{"$f":"IFERROR($G$58*$G$62,0)","v":0}]
["AO - Bloc technique - Tous"]
["Transport des travailleurs"]
["Type de transport"]
["Ajustement (%)",null,null,null,null,null,{"$f":"IFERROR(VLOOKUP(CONCATENATE(Menus!$A$22,\" — \",$G$8,\" — \",$G$66),Ajustement_3_Transport_Tous,3,FALSE),0)","v":0}]
["Ajustement ($/Unité)",null,null,null,null,null,{"$f":"IFERROR($G$58*$G$67,0)","v":0}]
["AO - Bloc technique - AVEC Hébergement"]
["Hébergement des travailleurs"]
["Type d'hébergement",null,null,null,null,{"$f":"IFERROR(IF(EXACT($G$8,Menus!$A$3)=TRUE,\"Hebergement_SANS\",\"Hebergement_AO\"),\"Hebergement_AO\")","v":"Hebergement_AO"}]
["Ajustement (%)",null,null,null,null,null,{"$f":"IFERROR(VLOOKUP(CONCATENATE(Menus!$A$22,\" — \",$G$8&\"NA\",\" — \",$G$71),Ajustement_4_Hebergement_Tous,3,FALSE),0)","v":0}]
["Ajustement ($/Unité)",null,null,null,null,null,{"$f":"IFERROR($G$58*$G$72,0)","v":0}]
["ERTS (gré à gré) - Bloc technique - Tous"]
["Hausse des prix"]
["Ajustement (%)",null,null,null,null,null,{"$f":"IFERROR(IF(EXACT($G$8,Menus!$A$4),VLOOKUP(CONCATENATE(Menus!$A$22,\" — \",$G$8),Ajustement_6_Carburant_ERTS,3,FALSE),0),0)","v":5.3499999999999999E-2}]
["Ajustement ($/Unité)",null,null,null,null,null,{"$f":"IFERROR($G$58*$G$76,0)","v":0}]
["Taux ajusté pour hausse des prix ($/Unité)",null,null,null,null,null,{"$f":"IFERROR(SUM($G$58)*(1+$G$76),0)","v":0}]
["ERTS (gré à gré) - Bloc technique - Tous"]
["Acquisition d’équipements de protection individuelle et sanitaire pour la réalisation des traitements excluant les besoins pour le transport et\nl’hébergement"]
["Ajustement (%)",null,null,null,null,null,{"$f":"IFERROR(IF(EXACT($G$8,Menus!$A$4),VLOOKUP(CONCATENATE(Menus!$A$22,\" — \",$G$8),Ajustement_1_EPIS_ERTS__125_AO,3,FALSE),0),0)","v":4.1999999999999997E-3}]
["Ajustement ($/Unité)",null,null,null,null,null,{"$f":"IFERROR($G$78*$G$81,0)","v":0}]
["ERTS (gré à gré) - Bloc technique - Tous"]
["Gestion, planification, sensibilisation, formation et logistique"]
["Ajustement (%)",null,null,null,null,null,{"$f":"IFERROR(IF(EXACT($G$8,Menus!$A$4),VLOOKUP(CONCATENATE(Menus!$A$22,\" — \",$G$8),Ajustement_2_GPSFL_ERTS,3,FALSE),0),0)","v":5.3E-3}]
["Ajustement ($/Unité)",null,null,null,null,null,{"$f":"IFERROR($G$78*$G$85,0)","v":0}]
["ERTS (gré à gré) - Bloc technique - Tous"]
["Transport des travailleurs (adaptation des véhicules et équipement de protection individuelle)"]
["Type de transport"]
["Ajustement (%)",null,null,null,null,null,{"$f":"IFERROR(VLOOKUP(CONCATENATE(Menus!$A$22,\" — \",$G$8,\" — \",$G$89),Ajustement_3_Transport_Tous,3,FALSE),0)","v":0}]
["Ajustement ($/Unité)",null,null,null,null,null,{"$f":"IFERROR($G$78*$G$90,0)","v":0}]
["ERTS (gré à gré) - Bloc technique - Tous"]
["Hébergement des travailleurs"]
["Type d'hébergement"]
["Ajustement (%)",null,null,{"$f":"IF(EXACT(UPPER($G$8),UPPER(Menus!$A$4)),IF(OR(EXACT(UPPER($G$94),UPPER(Menus!$A$7)),EXACT(UPPER($G$94),UPPER(Menus!$A$33))),\"\",\"Maximum admissible : \"),\"\")","v":"Maximum admissible : "},null,{"$f":"IFERROR(IF(EXACT(UPPER($G$8),UPPER(Menus!$A$4)),IF(OR(EXACT(UPPER($G$94),UPPER(Menus!$A$7)),EXACT(UPPER($G$94),UPPER(Menus!$A$33))),\"\",VLOOKUP(CONCATENATE(Menus!$A$22,\" — \",$G$8,\" — \",$G$94),Ajustement_4_Hebergement_Tous,3,FALSE)),\"\"),0)","v":0},"Inscrire une valeur"]
["Ajustement ($/Unité)",null,null,null,null,null,{"$f":"IF(EXACT(UPPER($G$94),UPPER(Menus!$A$33)),0,IF($G$95<=$F$95,$G$78*$G$95,0))","v":0}]
["AO - Totaux - Tous"]
["Totaux"]
["Total des ajustements admissibles ($/Unité)\nLa valeur des ajustements autres que celui pour la hausse des prix est calculée sur la base du taux ajusté pour la hausse des prix",null,null,null,null,null,{"$f":"IFERROR(IF(OR(ISBLANK($G$20),ISBLANK($G$25),EXACT(UPPER($G$20),UPPER(Menus!$A$7)),IF(EXACT(UPPER($G$8),UPPER(Menus!$A$2)),EXACT(UPPER($G$25),UPPER(Menus!$A$7))))=TRUE,0,ROUND(SUM($G$13*$G$16,$G$13*$G$21,$G$13*$G$26),2)),0)","v":0}]
["Total des ajustements admissibles — Bloc technique « suivi de conformité » ($/Unité)\nLa valeur des ajustements autres que celui pour la hausse des prix est calculée sur la base du taux ajusté pour la hausse des prix",null,null,null,null,null,{"$f":"IFERROR(IF(OR(EXACT(UPPER($G$8),UPPER(Menus!$A$2)),EXACT(UPPER($G$8),UPPER(Menus!$A$3))),IF(OR(ISBLANK($G$66),EXACT(UPPER($G$66),UPPER(Menus!$A$7)))=TRUE,0,ROUND(SUM($G$58*$G$62,$G$58*$G$67,$G$58*$G$72),2)),0),0)","v":0}]
["Grand total admissible ($)",null,null,null,null,null,{"$f":"IFERROR(ROUND(SUM($G$12*$G$99,$G$59*$G$100),2),0)","v":0}]
["ERTS (gré à gré) - Totaux - Tous"]
["Totaux"]
["Total des ajustements admissibles ($/Unité)\nLa valeur des ajustements autres que celui pour la hausse des prix est calculée sur la base du taux ajusté pour la hausse des prix",null,null,null,null,null,{"$f":"IFERROR(IF(EXACT(UPPER($G$8),UPPER(Menus!$A$4)),IF(OR(ISBLANK($G$43),ISBLANK($G$52),EXACT(UPPER($G$43),UPPER(Menus!$A$7)),EXACT(UPPER($G$52),UPPER(Menus!$A$7)),AND(EXACT(UPPER($G$52),UPPER(Hebergement_ERTS_TC)),$G$53>0),$G$53>$F$53)=TRUE,0,ROUND(SUM(($G$32-$G$13),$G$32*$G$35,$G$32*$G$39,$G$32*$G$44,$G$32*$G$48,$G$32*$G$53),2)),0),0)","v":0}]
["Total des ajustements admissibles — Bloc technique « suivi de conformité » ($/Unité)\nLa valeur des ajustements autres que celui pour la hausse des prix est calculée sur la base du taux ajusté pour la hausse des prix",null,null,null,null,null,{"$f":"IFERROR(IF(EXACT(UPPER($G$8),UPPER(Menus!$A$4)),IF(OR(ISBLANK($G$89),ISBLANK($G$94),EXACT(UPPER($G$89),UPPER(Menus!$A$7)),EXACT(UPPER($G$94),UPPER(Menus!$A$7)),AND(EXACT(UPPER($G$94),UPPER(Hebergement_ERTS_TC)),$G$95>0),$G$95>$F$95)=TRUE,0,ROUND(SUM(($G$78-$G$58),$G$78*$G$81,$G$78*$G$85,$G$78*$G$90,$G$78*$G$95),2)),0),0)","v":0}]
["Grand total admissible ($)",null,null,null,null,null,{"$f":"IFERROR(ROUND(SUM($G$12*$G$104,$G$59*$G$105),2),0)","v":0}]
[]
["Remarques"]
[]
["J'atteste que les renseignements fournis dans ce document afin de calculer le taux du traitement sont complets et conformes à la vérité, au meilleur de mes connaissances."]
[]
[]
[]
["Nom et prénom de l'ingénieur forestier",null,null,null,null,null,"Numéro de permis"]
[null,null,null,null,null,null,{"$f":"TODAY()","v":"2022-10-03"}]
[]
["Signature de l'ingénieur forestier",null,null,null,null,null,"Date (AAAA-MM-JJ)"]
[]
[]
["Section réservée au suivi du contrat"]
[]
[]
[null,"Nom du fichier :",{"$f":"IF($G$5<>\"\",$G$5,\"\")","v":""}]
[null,"Type d'ajustements : ",{"$f":"IFERROR(IF(EXACT(UPPER($G$6),UPPER(Menus!$A$10)),\"Exécution + suivi de conformité\",IF(EXACT(UPPER($G$6),UPPER(Menus!$A$11)),\"Exécution\",\"\")),\"\")","v":""}]
[null,"Numéro du contrat :"]
[null,"Numéro du projet :"]
[null,"U.G. :"]
[null,"MRC :"]
[null,"Code de traitement DICA :"]
[null,"Code de traitement RATF :"]
[null,"Famille ou type d'activité : ",{"$f":"IF(OR(ISBLANK($G$7)=TRUE,EXACT(UPPER($G$7),UPPER(Inscrire_une_valeur))),\"\",CONCATENATE($G$7,IF(EXACT(UPPER($G$6),UPPER(Menus!$A$10)),\" - Avec suivi de conformité\",\" - Sans suivi de conformité\")))","v":""}]
[null,"Mode d'attribution : ",{"$f":"IF(OR(ISBLANK($G$8)=TRUE,EXACT(UPPER($G$8),UPPER(Inscrire_une_valeur))),\"\",$G$8)","v":"ERTS (gré à gré)"}]
[null,"Valeur totale des ajustements : ",{"$f":"$G$106","v":0}]
[null,"Nom de l'entrepreneur : "]
[null,"Numéro de fournisseur : "]
[null,"Date de début :"]
[null,"Date de fin :"]
[null,"Commentaires :"]

{"sheet":"Info - Valeurs d'ajustement","index":2,"n_rows":48,"n_cols":12,"rows_kept":48,"cut":false,"hidden":true,"merged":[[5,1,5,9],[6,1,6,9],[39,0,40,0],[11,2,12,2],[11,3,11,5],[11,6,11,7],[39,1,40,1],[39,2,39,3],[11,1,12,1],[24,0,24,5],[37,0,37,3],[11,0,12,0],[25,0,25,5],[26,0,27,0],[38,0,38,3],[26,1,27,1],[0,0,0,9],[1,1,1,9],[2,1,2,9],[3,1,3,9],[4,1,4,9],[52,23,53,23],[21,0,21,9],[11,9,12,9],[9,0,9,9],[10,0,10,9],[26,2,26,3],[26,4,26,5],[52,15,53,15],[52,16,53,16],[52,17,52,19],[52,20,52,21]]}
["Types d'ajustements possibles pour les mesures sanitaires (COVID-19) et la hausse des prix"]
["Élément 1","Acquisition d’équipements de protection individuelle et sanitaire pour la réalisation des traitements excluant les besoins pour le transport et l’hébergement"]
["Élément 2","Gestion, planification, sensibilisation, formation et logistique"]
["Élément 3","Transport des travailleurs"]
["Élément 4","Hébergement des travailleurs"]
[]
["Élément 5","Ajustement pour la hausse des prix - s'applique sur le taux d'exécution avant les ajustements"]
[]
[]
["Forêt publique 2022-2023"]
["Synthèse des ajustements pour les mesures sanitaires (COVID-19) et la hausse des prix — travaux offerts en ERTS"]
["Éléments et valeurs d'ajustement →\nFamilles de traitements ou types d'activités ↓","Acquisition d’équipement de protection individuelle\n(Élément 1)","Gestion, planification, sensibilisation et formation et logistique\n(Élément 2)","Ajustement transport\n(Élément 3)",null,null,"Ajustement du maximum admissible pour l'hébergement *\n(Élément 4)",null,null,"Ajustement pour la hausse des prix\n(Élément 5)"]
[null,null,null,null,"Adaptation des véhicules et équipement de protection individuelle",null,"Location d'une chambre\n(Hôtel, pourvoirie, etc.)","Camp forestier"]
["Traitements du site",4.4999999999999997E-3,5.1000000000000004E-3,0,0,0,9.2499999999999999E-2,2.3099999999999999E-2,0,0.11210000000000001]
["Régénération artificielle",1.2999999999999999E-3,6.1999999999999998E-3,0,7.3000000000000001E-3,0,0.21029999999999999,5.2600000000000001E-2,0,5.6399999999999999E-2]
["Éducation de peuplement",2.5999999999999999E-3,4.5999999999999999E-3,0,2.8400000000000002E-2,0,0.23019999999999999,5.7599999999999998E-2,0,4.8300000000000003E-2]
["Travaux techniques autres",4.1999999999999997E-3,5.3E-3,0,0,0,0.16159999999999999,4.0399999999999998E-2,0,5.3499999999999999E-2]
["Inventaire avant traitement",4.1999999999999997E-3,5.3E-3,0,2.3099999999999999E-2,0,0.16159999999999999,4.0399999999999998E-2,0,5.3499999999999999E-2]
["Martelage",7.1999999999999998E-3,3.3E-3,0,3.9600000000000003E-2,0,0.111,2.7699999999999999E-2,0,5.2299999999999999E-2]
["EC EAF mécanisée",4.4999999999999997E-3,5.1000000000000004E-3,0,0,0,3.7499999999999999E-2,3.7499999999999999E-2,0,0.13779819380353625]
["EC EAF manuelle",4.4999999999999997E-3,5.1000000000000004E-3,0,0,0,3.7499999999999999E-2,3.7499999999999999E-2,0,8.6205296859036287E-2]
["* La majoration de l'hébergement pour l'EC réservée aux entreprises d'aménagement forestier (EC EAF) n'est pas un maximum, l'ajustement de 3,75% additionnel est octroyé sur justification d'hébergement et de l'application de mesures sanitaires."]
[null,null,null,null,null,null,null,null,null,null,null,5.0200000000000002E-2]
[]
["Forêt publique - Non applicable 2021-2022"]
["Synthèse des ajustements pour les mesures sanitaires (COVID-19) — travaux offerts en AO dont le prix soumis inclus l'hébergement"]
["Éléments et valeurs d'ajustement →\nFamilles de traitement ou types d'activité ↓","Ajustement excluant le carburant, transport et hébergement (Éléments 1, 2 et 5)","Ajustement transport (Élément 3)",null,"Ajustement pour l'hébergement (élément 4)"]
[null,null,"Transport réduit (50 %) et équipement de protection individuelle","Adaptation des véhicules et équipement de protection individuelle","Location d'une chambre (Hôtel, pourvoirie, etc.)","Camps forestier"]
["Traitements du site",0,0,0,0,0]
["Régénération artificielle",0,0,0,0,0]
["Éducation de peuplement",0,0,0,0,0]
["Travaux techniques autres",0,0,0,0,0]
["Inventaire avant traitement",0,0,0,0,0]
["Martelage",0,0,0,0,0]
["EC EAF",0,0,0,0,0]
[]
[]
["Forêt publique - Non applicable 2021-2022"]
["Synthèse des ajustements pour les mesures sanitaires (COVID­19) — travaux offerts en AO sans hébergement"]
["Éléments et valeurs d'ajustement →\nFamilles de traitement ou types d'activité ↓","Ajustement excluant le carburant, transport et hébergement (Éléments 1, 2 et 5)","Ajustement transport (Élément 3)"]
[null,null,"Transport réduit (50 %) et équipement de protection individuelle","Adaptation des véhicules et équipement de protection individuelle"]
["Traitements du site",0,0,0]
["Régénération artificielle",0,0,0]
["Éducation de peuplement",0,0,0]
["Travaux techniques autres",0,0,0]
["Inventaire avant traitement",0,0,0]
["Martelage",0,0,0]
["EC EAF",0,0,0]

{"sheet":"Info - Majorations applicables","index":3,"n_rows":47,"n_cols":10,"rows_kept":47,"cut":false,"hidden":true,"merged":[]}
["Fichier de détermination du taux","Onglet du fichier de détermination du taux","Famille de traitements ou type d'activité à utiliser aux fins du calcul des ajustements","Traitement","Équipement ou modalité","Majoration 1","Majoration 2","Majoration 3","Majoration 4","Remarques"]
["Annexe TSNC","Traitements du site","Traitements du site","Déblaiement des résidus de coupe","Abatteuse groupeuse après feux","PE2","DMOD","-","-","PE2 (pente) et DMOD (productivité modérée)"]
["Annexe TSNC","Traitements du site","Traitements du site","Déblaiement des résidus de coupe","Bouteur avec pelle râteau","PE4","DMOD","-","-","PE4 (pente) et DMOD (productivité modérée)"]
["Annexe TSNC","Traitements du site","Traitements du site","Déblaiement des résidus de coupe","Excavatrice ou débusqueuse ou abatteuse","PE2","PE3","DMOD","-","PE2 (pente, excavatrice et abatteuse) ou PE3 (pente, débusqueuse) et DMOD (productivité modérée)"]
["Annexe TSNC","Traitements du site","Régénération artificielle","Fertilisation du peuplier hybride","S/O","PE2","-","-","-","PE2 (pente)"]
["Annexe TSNC","Traitements du site","Traitements du site","Scarifiage par mixage (hersage/labourage)","Herses forestières","PA2","PE2","DRAP","-","PA2 (nombre passages), PE2 (pente) et DRAP (productivité élevée)"]
["Annexe TSNC","Traitements du site","Régénération artificielle","Scarifiage par mixage par placeaux","Taupe ou pioche forestière","-","-","-","-","Aucune"]
["Annexe TSNC","Traitements du site","Traitements du site","Scarifiage par monticules avec scarificateur","Bracke M-36a avec débardeur","PE1","DRAP","-","-","PE1 (pente) et DRAP (productivité élevée)"]
["Annexe TSNC","Traitements du site","Traitements du site","Scarifiage par monticules avec scarificateur","Bracke M-36a avec porteur ou débardeur à six roues","PE1","DRAP","-","-","PE1 (pente) et DRAP (productivité élevée)"]
["Annexe TSNC","Traitements du site","Traitements du site","Scarifiage par monticules ou inversion par placeaux ou décapage par placeaux","Excavatrice","PE2","DMOD","-","-","PE2 (pente) et DMOD (productivité modérée)"]
["Annexe TSNC","Traitements du site","Traitements du site","Scarifiage par sillons continus ou discontinus avec scarificateur","Bracke T-26 avec débardeur, Types TTS hydrauliques ou Donaren","PA0","PA1","PE1","DRAP","PA0 (distance passages), PA1 (nombre passages), PE1 (pente) et DRAP (productivité élevée)"]
["Annexe TSNC","Traitements du site","Traitements du site","Scarifiage par sillons continus ou discontinus avec scarificateur","Bracke T-26 avec porteur ou débardeur à six roues","PA0","PA1","PE1","DRAP","PA0 (distance passages), PA1 (nombre passages), PE1 (pente) et DRAP (productivité élevée)"]
["Annexe TSNC","Traitements du site","Traitements du site","Scarifiage par sillons continus ou discontinus avec scarificateur","Types TTS passifs","PA0","PA1","PE1","DRAP","PA0 (distance passages), PA1 (nombre passages), PE1 (pente) et DRAP (productivité élevée)"]
["Annexe TSNC - PATS","Traitements du site - PATS","Traitements du site","Broyage forestier","Compétition ligneuse et déchets de coupe avec récolte, Compétition ligneuse, déchets de coupe et tiges rémanentes avec récolte, Peuplement pré-mature avec épidémie sévère et sans récolte\n","PE2","DMOD","-","-","PE2 (pente) et DMOD (productivité modérée)"]
["Annexe TSNC - PATS","Traitements du site - PATS","Traitements du site","Déblaiement après perturbation naturelle sans récolte","Abatteuse groupeuse","PE2","DMOD","-","-","PE2 (pente) et DMOD (productivité modérée)"]
["Annexe TSNC - PATS","Traitements du site - PATS","Traitements du site","Déblaiement des résidus de coupe","Bouteur avec pelle modifiée","PE4","DMOD","-","-","PE4 (pente) et DMOD (productivité modérée)"]
["Annexe TSNC - PATS","Traitements du site - PATS","Traitements du site","Déblaiement des résidus de coupe combiné à un scarifiage en monticules","Excavatrice","PE2","DMOD","-","-","PE2 (pente) et DMOD (productivité modérée)"]
["Annexe TSNC - PATS","Traitements du site - PATS","Traitements du site","Déblaiement d'hiver de la végétation","Bouteur avec lame tranchante","PE4","DMOD","-","-","PE4 (pente) et DMOD (productivité modérée)"]
["Annexe TSNC - PATS","Traitements du site - PATS","Traitements du site","Déblaiement d'un peuplement sans perturbation naturelle et sans récolte","Excavatrice ou débusqueuse","PE2","DMOD","-","-","PE2 (pente) et DMOD (productivité modérée)"]
["Annexe TSNC - PATS","Traitements du site - PATS","Éducation de peuplement","Débroussaillement manuel","Difficulté faible, Difficulté moyenne OU difficulté élevée et densité faible (moins de 20 000 ti/ha), Difficulté élevée et densité moyenne (20 000 à 30 000 ti/ha), Difficulté élevée et densité forte (plus de 30 000 ti/ha)","PE2","-","-","-","PE2 (pente)"]
["Annexe TSNC - PATS","Traitements du site - PATS","Traitements du site","Scarifiage par monticules et tranchées","Excavatrice pour le PEH","PE2","DMOD","-","-","PE2 (pente) et DMOD (productivité modérée)"]
["Tous","Traitements du site (suivi de conformité)","Travaux techniques autres","Délimitation physique ou virtuelle et suivi de conformité","S/O","-","-","-","-","Aucune"]
["Annexe TSNC","Éducation de peuplement","Éducation de peuplement","Dégagement mécanique","S/O","PE2","DEGPM","-","-","PE2 (pente) et DEGPM (préparation de terrain avec excavatrice par monticules ou par placeaux)"]
["Annexe TSNC","Éducation de peuplement","Éducation de peuplement","Éclaircie précommerciale systématique d'un peuplement résineux ou du peuplier","S/O","PE2","-","-","-","PE2 (pente)"]
["Annexe TSNC","Éducation de peuplement","Éducation de peuplement","Élagage à des fins de qualité pour le pin blanc et le pin rouge","S/O","PE2","-","-","-","PE2 (pente)"]
["Annexe TSNC","Éducation de peuplement","Éducation de peuplement","EPC par puits de lumière ET Taille de formation avec martelage","S/O","PE2","-","-","-","PE2 (pente)"]
["Annexe TSNC","Éducation de peuplement","Éducation de peuplement","Nettoiement d'un peuplement résineux ou mixte à dominance de résineux (MR­FI)","S/O","PE2","-","-","-","PE2 (pente)"]
["Annexe TSNC","Éducation de peuplement","Éducation de peuplement","Taille phytosanitaire","S/O","PE2","-","-","-","PE2 (pente)"]
["Annexe TSNC - PATS","Éducation de peuplement - PATS","Éducation de peuplement","Débroussaillement manuel interplaceaux","S/O","PE2","-","-","-","PE2 (pente)"]
["Annexe TSNC - PATS","Éducation de peuplement - PATS","Éducation de peuplement","Dépressage","Hauteur du peuplement ≤ 2,5 m : 2 m layons x 4 m entraxes (peuplement résiduel), Hauteur du peuplement > 2,5 m : 3 m layons x 4 m entraxes (peuplement résiduel)","PE2","-","-","-","PE2 (pente)"]
["Annexe TSNC - PATS","Éducation de peuplement - PATS","Éducation de peuplement","Nettoiement d'un peuplement résineux ou mixte à dominance de résineux (MR­FI) réalisé dans des conditions spécifiques","S/O","PE2","-","-","-","PE2 (pente)"]
["Annexe TSNC - PATS","Éducation de peuplement - PATS","Éducation de peuplement","Nettoiement sous couvert d’un peuplement de feuillus tolérants","S/O","PE2","-","-","-","PE2 (pente)"]
["Tous","Éducation de peuplement (suivi de conformité)","Travaux techniques autres","Délimitation et suivi de conformité","S/O","-","-","-","-","Aucune"]
["Annexe TSNC","Régénération artificielle","Régénération artificielle","Ensemencement terrestre manuel","S/O","PE2","-","-","-","PE2 (pente)"]
["Annexe TSNC","Régénération artificielle","Régénération artificielle","Plantation uniforme et regarni en plein manuel sauf PEH","S/O","RAPM","-","-","-","RAPM (préparation de terrain avec excavatrice par monticules ou par placeaux)"]
["Annexe TSNC","Régénération artificielle","Régénération artificielle","Plantation uniforme et regarni en plein manuel sentier préparé sauf PEH","S/O","RAPM","-","-","-","RAPM (préparation de terrain avec excavatrice par monticules ou par placeaux)"]
["Annexe TSNC","Régénération artificielle","Traitements du site","Plantation uniforme et regarni mécanique (Scarificateur­planteur Bracke P­11a)","Gabarit et densité","-","-","-","-","Aucune"]
["Annexe TSNC","Régénération artificielle","Régénération artificielle","Plantation uniforme PEH","S/O","RAPM","-","-","-","RAPM (préparation de terrain avec excavatrice par monticules ou par placeaux)"]
["Annexe TSNC","Régénération artificielle","Régénération artificielle","Regarni de sentier et plantation d'enrichissement manuel sauf PEH","S/O","RAPM","-","-","-","RAPM (préparation de terrain avec excavatrice par monticules ou par placeaux)"]
["Annexe TSNC","Régénération artificielle (suivi de conformité)","Travaux techniques autres","Suivi de conformité","S/O","-","-","-","-","Aucune"]
["Annexe TSNC","Éclaircie commerciale EAF","EC EAF","Éclaircie commerciale EAF","S/O","PE2","Délimitation","-","-","PE2 (pente) et activité de Délimitation physique (ruban) des sentiers de débardage"]
["Annexe TSNC","Martelage","Martelage","Martelage","S/O","-","-","-","-","Aucune"]
["Annexe TSNC","Martelage","Martelage","Martelage négatif - EC (résineux ou mixte résineux)","S/O","-","-","-","-","Aucune"]
["Annexe TSNC","Martelage","Martelage","Martelage positif - EC (résineux ou mixte résineux)","S/O","-","-","-","-","Aucune"]
["Annexe TSNC","Martelage (suivi de conformité)","Travaux techniques autres","Délimitation et suivi de conformité","S/O","-","-","-","-","Aucune"]
["Tous","Travaux de planif et techniques, Suivi d'efficacité","Inventaire avant traitement","Inventaire avant traitement, SI recherché, SI proposé, plan de sondage et suivi d'efficacité","S/O","-","-","-","-","Aucune"]
["Annexe TSNC","Travaux de planif et techniques","Inventaire avant traitement","Délimitation réalisée par une tierce partie","S/O","-","-","-","-","Aucune"]

{"sheet":"Versions du fichier","index":4,"n_rows":12,"n_cols":33,"rows_kept":12,"cut":false,"hidden":true,"merged":[[0,0,0,16],[0,20,0,27]]}
["Suivi des versions de l'annexe au calcul des ajustements applicables aux taux des traitements non commerciaux 2022-2023\nForêt publique",null,null,null,null,null,null,null,null,null,null,null,null,null,null,null,null,null,null,null,"Version 3 : 2022-10-03",null,null,null,null,null,null,null,null,null,null,null,{"$f":"TODAY()","v":"2022-10-03"}]
[0]
["Version 1","Nom du fichier :","Annexe_calcul_ajustements_TSNC_2022-2023_2022-04-27.xlsm"]
[{"$f":"A3","v":"Version 1"},"Date de mise en ligne :","2022-04-27 ou dans les jours suivants."]
[{"$f":"A4","v":"Version 1"},"Remarques :","• Version officielle"]
[{"$f":"A5","v":"Version 1"}]
["Version 2 ","Nom du fichier :","Annexe_calcul_ajustements_TSNC_2022-2023_2022-06-14.xlsm"]
["Version 2 ","Date de mise en ligne :","2022-06-14 ou dans les jours suivants."]
["Version 3 2022-10-03","Nom du fichier :","Annexe_calcul_ajustements_TSNC_2022-2023_2022-10-03.xlsm"]
["Version 3","Nom du fichier :","Annexe_calcul_ajustements_TSNC_2022-2023_2022-10-03.xlsm"]
[null,"Date de mise en ligne :","2022-10-03"]
[null,"Remarques :","•"]

{"sheet":"Menus","index":5,"n_rows":42,"n_cols":1,"rows_kept":42,"cut":false,"hidden":true,"merged":[]}
["Mode d'attribution: 2022-2023 est ERTS seulement"]
["AO - AVEC hébergement"]
["AO - SANS hébergement"]
["ERTS (gré à gré)"]
[]
["Inscrire une valeur"]
["Inscrire une valeur"]
[]
["Question"]
["Oui"]
["Non"]
["Sans objet"]
[]
["Famille ou type - Tous"]
["EC EAF manuelle"]
["EC EAF mécanisée"]
["Éducation de peuplement"]
["Inventaire avant traitement"]
["Martelage"]
["Régénération artificielle"]
["Traitements du site"]
["Travaux techniques autres"]
[]
["Famille ou type - EXE+SUIVI"]
["Éducation de peuplement"]
["Martelage"]
["Régénération artificielle"]
["Traitements du site"]
[]
["Travaux techniques autres"]
["Camp forestier"]
["Hébergement adéquat (hôtel, pourvoirie ou autre unité individuelle)"]
["SANS hébergement"]
[]
["Type d'hébergement SANS"]
["SANS hébergement"]
[]
["Transport ERTS"]
["Adaptation des véhicules et ÉPI"]
[]
["Transport AO"]
["Adaptation des véhicules et ÉPI"]

{"sheet":"Ajustements","index":6,"n_rows":201,"n_cols":6,"rows_kept":201,"cut":false,"hidden":true,"merged":[[175,2,175,4],[175,0,175,1],[0,1,0,4],[27,1,27,4],[54,1,54,5],[113,1,113,5],[148,1,148,4]]}
["Ajustement 1 — ERTS\nAjustements 1-2-5 — AO","Acquisition d’équipements de protection individuelle et sanitaire pour la réalisation des traitements excluant les besoins pour le transport, l’hébergement et la manutention des plants"]
["Famille ou type","Mode d'attribution","Concatener (RechercheV)","Valeur brute","Valeur nette"]
[{"$f":"Menus!$A$15","v":"EC EAF manuelle"},{"$f":"Menus!$A$2","v":"AO - AVEC hébergement"},{"$f":"CONCATENATE(A3,\" — \",B3)","v":"EC EAF manuelle — AO - AVEC hébergement"},{"$f":"IFERROR(VLOOKUP(A3,'Info - Valeurs d''ajustement'!$A$29:$F$35,2,FALSE),0)","v":0},{"$f":"ROUND(D3,4)","v":0}]
[{"$f":"Menus!$A$15","v":"EC EAF manuelle"},{"$f":"Menus!$A$3","v":"AO - SANS hébergement"},"EC EAF manuelle — AO - SANS hébergement",{"$f":"IFERROR(VLOOKUP(A4,'Info - Valeurs d''ajustement'!$A$42:$D$48,2,FALSE),0)","v":0},0]
[{"$f":"Menus!$A$15","v":"EC EAF manuelle"},{"$f":"Menus!$A$4","v":"ERTS (gré à gré)"},"EC EAF manuelle — ERTS (gré à gré)",{"$f":"VLOOKUP(A5,'Info - Valeurs d''ajustement'!$A$14:$J$21,2,FALSE)","v":4.4999999999999997E-3},4.4999999999999997E-3]
[{"$f":"Menus!$A$16","v":"EC EAF mécanisée"},{"$f":"Menus!$A$2","v":"AO - AVEC hébergement"},{"$f":"CONCATENATE(A6,\" — \",B6)","v":"EC EAF mécanisée — AO - AVEC hébergement"},{"$f":"IFERROR(VLOOKUP(A6,'Info - Valeurs d''ajustement'!$A$29:$F$35,2,FALSE),0)","v":0},{"$f":"ROUND(D6,4)","v":0}]
[{"$f":"Menus!$A$16","v":"EC EAF mécanisée"},{"$f":"Menus!$A$3","v":"AO - SANS hébergement"},"EC EAF mécanisée — AO - SANS hébergement",{"$f":"IFERROR(VLOOKUP(A7,'Info - Valeurs d''ajustement'!$A$42:$D$48,2,FALSE),0)","v":0},0]
[{"$f":"Menus!$A$16","v":"EC EAF mécanisée"},{"$f":"Menus!$A$4","v":"ERTS (gré à gré)"},"EC EAF mécanisée — ERTS (gré à gré)",{"$f":"VLOOKUP(A8,'Info - Valeurs d''ajustement'!$A$14:$J$21,2,FALSE)","v":4.4999999999999997E-3},4.4999999999999997E-3]
[{"$f":"Menus!$A$17","v":"Éducation de peuplement"},{"$f":"Menus!$A$2","v":"AO - AVEC hébergement"},"Éducation de peuplement — AO - AVEC hébergement",{"$f":"VLOOKUP(A9,'Info - Valeurs d''ajustement'!$A$29:$F$35,2,FALSE)","v":0},0]
[{"$f":"Menus!$A$17","v":"Éducation de peuplement"},{"$f":"Menus!$A$3","v":"AO - SANS hébergement"},"Éducation de peuplement — AO - SANS hébergement",{"$f":"VLOOKUP(A10,'Info - Valeurs d''ajustement'!$A$42:$D$48,2,FALSE)","v":0},0]
[{"$f":"Menus!$A$17","v":"Éducation de peuplement"},{"$f":"Menus!$A$4","v":"ERTS (gré à gré)"},"Éducation de peuplement — ERTS (gré à gré)",{"$f":"VLOOKUP(A11,'Info - Valeurs d''ajustement'!$A$14:$J$21,2,FALSE)","v":2.5999999999999999E-3},2.5999999999999999E-3]
[{"$f":"Menus!$A$18","v":"Inventaire avant traitement"},{"$f":"Menus!$A$2","v":"AO - AVEC hébergement"},"Inventaire avant traitement — AO - AVEC hébergement",{"$f":"VLOOKUP(A12,'Info - Valeurs d''ajustement'!$A$29:$F$35,2,FALSE)","v":0},0]
[{"$f":"Menus!$A$18","v":"Inventaire avant traitement"},{"$f":"Menus!$A$3","v":"AO - SANS hébergement"},"Inventaire avant traitement — AO - SANS hébergement",{"$f":"VLOOKUP(A13,'Info - Valeurs d''ajustement'!$A$42:$D$48,2,FALSE)","v":0},0]
[{"$f":"Menus!$A$18","v":"Inventaire avant traitement"},{"$f":"Menus!$A$4","v":"ERTS (gré à gré)"},"Inventaire avant traitement — ERTS (gré à gré)",{"$f":"VLOOKUP(A14,'Info - Valeurs d''ajustement'!$A$14:$J$21,2,FALSE)","v":4.1999999999999997E-3},4.1999999999999997E-3]
[{"$f":"Menus!$A$19","v":"Martelage"},{"$f":"Menus!$A$2","v":"AO - AVEC hébergement"},"Martelage — AO - AVEC hébergement",{"$f":"VLOOKUP(A15,'Info - Valeurs d''ajustement'!$A$29:$F$35,2,FALSE)","v":0},0]
[{"$f":"Menus!$A$19","v":"Martelage"},{"$f":"Menus!$A$3","v":"AO - SANS hébergement"},"Martelage — AO - SANS hébergement",{"$f":"VLOOKUP(A16,'Info - Valeurs d''ajustement'!$A$42:$D$48,2,FALSE)","v":0},0]
[{"$f":"Menus!$A$19","v":"Martelage"},{"$f":"Menus!$A$4","v":"ERTS (gré à gré)"},"Martelage — ERTS (gré à gré)",{"$f":"VLOOKUP(A17,'Info - Valeurs d''ajustement'!$A$14:$J$21,2,FALSE)","v":7.1999999999999998E-3},7.1999999999999998E-3]
[{"$f":"Menus!$A$20","v":"Régénération artificielle"},{"$f":"Menus!$A$2","v":"AO - AVEC hébergement"},"Régénération artificielle — AO - AVEC hébergement",{"$f":"VLOOKUP(A18,'Info - Valeurs d''ajustement'!$A$29:$F$35,2,FALSE)","v":0},0]
[{"$f":"Menus!$A$20","v":"Régénération artificielle"},{"$f":"Menus!$A$3","v":"AO - SANS hébergement"},"Régénération artificielle — AO - SANS hébergement",{"$f":"VLOOKUP(A19,'Info - Valeurs d''ajustement'!$A$42:$D$48,2,FALSE)","v":0},0]
[{"$f":"Menus!$A$20","v":"Régénération artificielle"},{"$f":"Menus!$A$4","v":"ERTS (gré à gré)"},"Régénération artificielle — ERTS (gré à gré)",{"$f":"VLOOKUP(A20,'Info - Valeurs d''ajustement'!$A$14:$J$21,2,FALSE)","v":1.2999999999999999E-3},1.2999999999999999E-3]
[{"$f":"Menus!$A$21","v":"Traitements du site"},{"$f":"Menus!$A$2","v":"AO - AVEC hébergement"},"Traitements du site — AO - AVEC hébergement",{"$f":"VLOOKUP(A21,'Info - Valeurs d''ajustement'!$A$29:$F$35,2,FALSE)","v":0},0]
[{"$f":"Menus!$A$21","v":"Traitements du site"},{"$f":"Menus!$A$3","v":"AO - SANS hébergement"},"Traitements du site — AO - SANS hébergement",{"$f":"VLOOKUP(A22,'Info - Valeurs d''ajustement'!$A$42:$D$48,2,FALSE)","v":0},0]
[{"$f":"Menus!$A$21","v":"Traitements du site"},{"$f":"Menus!$A$4","v":"ERTS (gré à gré)"},"Traitements du site — ERTS (gré à gré)",{"$f":"VLOOKUP(A23,'Info - Valeurs d''ajustement'!$A$14:$J$21,2,FALSE)","v":4.4999999999999997E-3},4.4999999999999997E-3]
[{"$f":"Menus!$A$22","v":"Travaux techniques autres"},{"$f":"Menus!$A$2","v":"AO - AVEC hébergement"},"Travaux techniques autres — AO - AVEC hébergement",{"$f":"VLOOKUP(A24,'Info - Valeurs d''ajustement'!$A$29:$F$35,2,FALSE)","v":0},0]
[{"$f":"Menus!$A$22","v":"Travaux techniques autres"},{"$f":"Menus!$A$3","v":"AO - SANS hébergement"},"Travaux techniques autres — AO - SANS hébergement",{"$f":"VLOOKUP(A25,'Info - Valeurs d''ajustement'!$A$42:$D$48,2,FALSE)","v":0},0]
[{"$f":"Menus!$A$22","v":"Travaux techniques autres"},{"$f":"Menus!$A$4","v":"ERTS (gré à gré)"},"Travaux techniques autres — ERTS (gré à gré)",{"$f":"VLOOKUP(A26,'Info - Valeurs d''ajustement'!$A$14:$J$21,2,FALSE)","v":4.1999999999999997E-3},4.1999999999999997E-3]
[]
["Ajustement 2","Gestion, planification, sensibilisation et formation et logistique"]
["Famille ou type","Mode d'attribution","Concatener (RechercheV)","Valeur brute","Valeur nette"]
[{"$f":"Menus!$A$15","v":"EC EAF manuelle"},{"$f":"Menus!$A$2","v":"AO - AVEC hébergement"},{"$f":"CONCATENATE(A30,\" — \",B30)","v":"EC EAF manuelle — AO - AVEC hébergement"},0,{"$f":"ROUND(D30,4)","v":0}]
[{"$f":"Menus!$A$15","v":"EC EAF manuelle"},{"$f":"Menus!$A$3","v":"AO - SANS hébergement"},"EC EAF manuelle — AO - SANS hébergement",0,0]
[{"$f":"Menus!$A$15","v":"EC EAF manuelle"},{"$f":"Menus!$A$4","v":"ERTS (gré à gré)"},"EC EAF manuelle — ERTS (gré à gré)",{"$f":"VLOOKUP(A32,'Info - Valeurs d''ajustement'!$A$14:$J$21,3,FALSE)","v":5.1000000000000004E-3},5.1000000000000004E-3]
[{"$f":"Menus!$A$16","v":"EC EAF mécanisée"},{"$f":"Menus!$A$2","v":"AO - AVEC hébergement"},{"$f":"CONCATENATE(A33,\" — \",B33)","v":"EC EAF mécanisée — AO - AVEC hébergement"},0,{"$f":"ROUND(D33,4)","v":0}]
[{"$f":"Menus!$A$16","v":"EC EAF mécanisée"},{"$f":"Menus!$A$3","v":"AO - SANS hébergement"},"EC EAF mécanisée — AO - SANS hébergement",0,0]
[{"$f":"Menus!$A$16","v":"EC EAF mécanisée"},{"$f":"Menus!$A$4","v":"ERTS (gré à gré)"},"EC EAF mécanisée — ERTS (gré à gré)",{"$f":"VLOOKUP(A35,'Info - Valeurs d''ajustement'!$A$14:$J$21,3,FALSE)","v":5.1000000000000004E-3},5.1000000000000004E-3]
[{"$f":"Menus!$A$17","v":"Éducation de peuplement"},{"$f":"Menus!$A$2","v":"AO - AVEC hébergement"},"Éducation de peuplement — AO - AVEC hébergement",0,0]
[{"$f":"Menus!$A$17","v":"Éducation de peuplement"},{"$f":"Menus!$A$3","v":"AO - SANS hébergement"},"Éducation de peuplement — AO - SANS hébergement",0,0]
[{"$f":"Menus!$A$17","v":"Éducation de peuplement"},{"$f":"Menus!$A$4","v":"ERTS (gré à gré)"},"Éducation de peuplement — ERTS (gré à gré)",{"$f":"VLOOKUP(A38,'Info - Valeurs d''ajustement'!$A$14:$J$21,3,FALSE)","v":4.5999999999999999E-3},4.5999999999999999E-3]
[{"$f":"Menus!$A$18","v":"Inventaire avant traitement"},{"$f":"Menus!$A$2","v":"AO - AVEC hébergement"},"Inventaire avant traitement — AO - AVEC hébergement",0,0]
[{"$f":"Menus!$A$18","v":"Inventaire avant traitement"},{"$f":"Menus!$A$3","v":"AO - SANS hébergement"},"Inventaire avant traitement — AO - SANS hébergement",0,0]
[{"$f":"Menus!$A$18","v":"Inventaire avant traitement"},{"$f":"Menus!$A$4","v":"ERTS (gré à gré)"},"Inventaire avant traitement — ERTS (gré à gré)",{"$f":"VLOOKUP(A41,'Info - Valeurs d''ajustement'!$A$14:$I$21,3,FALSE)","v":5.3E-3},5.3E-3]
[{"$f":"Menus!$A$19","v":"Martelage"},{"$f":"Menus!$A$2","v":"AO - AVEC hébergement"},"Martelage — AO - AVEC hébergement",0,0]
[{"$f":"Menus!$A$19","v":"Martelage"},{"$f":"Menus!$A$3","v":"AO - SANS hébergement"},"Martelage — AO - SANS hébergement",0,0]
[{"$f":"Menus!$A$19","v":"Martelage"},{"$f":"Menus!$A$4","v":"ERTS (gré à gré)"},"Martelage — ERTS (gré à gré)",{"$f":"VLOOKUP(A44,'Info - Valeurs d''ajustement'!$A$14:$J$21,3,FALSE)","v":3.3E-3},3.3E-3]
[{"$f":"Menus!$A$20","v":"Régénération artificielle"},{"$f":"Menus!$A$2","v":"AO - AVEC hébergement"},"Régénération artificielle — AO - AVEC hébergement",0,0]
[{"$f":"Menus!$A$20","v":"Régénération artificielle"},{"$f":"Menus!$A$3","v":"AO - SANS hébergement"},"Régénération artificielle — AO - SANS hébergement",0,0]
[{"$f":"Menus!$A$20","v":"Régénération artificielle"},{"$f":"Menus!$A$4","v":"ERTS (gré à gré)"},"Régénération artificielle — ERTS (gré à gré)",{"$f":"VLOOKUP(A47,'Info - Valeurs d''ajustement'!$A$14:$J$21,3,FALSE)","v":6.1999999999999998E-3},6.1999999999999998E-3]
[{"$f":"Menus!$A$21","v":"Traitements du site"},{"$f":"Menus!$A$2","v":"AO - AVEC hébergement"},"Traitements du site — AO - AVEC hébergement",0,0]
[{"$f":"Menus!$A$21","v":"Traitements du site"},{"$f":"Menus!$A$3","v":"AO - SANS hébergement"},"Traitements du site — AO - SANS hébergement",0,0]
[{"$f":"Menus!$A$21","v":"Traitements du site"},{"$f":"Menus!$A$4","v":"ERTS (gré à gré)"},"Traitements du site — ERTS (gré à gré)",{"$f":"VLOOKUP(A50,'Info - Valeurs d''ajustement'!$A$14:$J$21,3,FALSE)","v":5.1000000000000004E-3},5.1000000000000004E-3]
[{"$f":"Menus!$A$22","v":"Travaux techniques autres"},{"$f":"Menus!$A$2","v":"AO - AVEC hébergement"},"Travaux techniques autres — AO - AVEC hébergement",0,0]
[{"$f":"Menus!$A$22","v":"Travaux techniques autres"},{"$f":"Menus!$A$3","v":"AO - SANS hébergement"},"Travaux techniques autres — AO - SANS hébergement",0,0]
[{"$f":"Menus!$A$22","v":"Travaux techniques autres"},{"$f":"Menus!$A$4","v":"ERTS (gré à gré)"},"Travaux techniques autres — ERTS (gré à gré)",{"$f":"VLOOKUP(A53,'Info - Valeurs d''ajustement'!$A$14:$J$21,3,FALSE)","v":5.3E-3},5.3E-3]
[]
["Ajustement 3","Transport des travailleurs (1 élément seulement)"]
["Famille ou type","Mode d'attribution","Transport","Concatener (RechercheV)","Valeur brute","Valeur nette"]
[{"$f":"Menus!$A$15","v":"EC EAF manuelle"},{"$f":"Menus!$A$2","v":"AO - AVEC hébergement"},{"$f":"Menus!$A$42","v":"Adaptation des véhicules et ÉPI"},{"$f":"CONCATENATE(A57,\" — \",B57,\" — \",C57)","v":"EC EAF manuelle — AO - AVEC hébergement — Adaptation des véhicules et ÉPI"},{"$f":"IFERROR(VLOOKUP(A57,'Info - Valeurs d''ajustement'!$A$29:$F$35,4,FALSE),0)","v":0},{"$f":"ROUND(E57,4)","v":0}]
[{"$f":"Menus!$A$15","v":"EC EAF manuelle"},{"$f":"Menus!$A$2","v":"AO - AVEC hébergement"},null,{"$f":"CONCATENATE(A58,\" — \",B58,\" — \",C58)","v":"EC EAF manuelle — AO - AVEC hébergement — "},{"$f":"IFERROR(VLOOKUP(A58,'Info - Valeurs d''ajustement'!$A$29:$F$35,3,FALSE),0)","v":0},0]
[{"$f":"Menus!$A$15","v":"EC EAF manuelle"},{"$f":"Menus!$A$3","v":"AO - SANS hébergement"},{"$f":"Menus!$A$42","v":"Adaptation des véhicules et ÉPI"},"EC EAF manuelle — AO - SANS hébergement — Adaptation des véhicules et ÉPI",{"$f":"IFERROR(VLOOKUP(A59,'Info - Valeurs d''ajustement'!$A$42:$D$48,4,FALSE),0)","v":0},0]
[{"$f":"Menus!$A$15","v":"EC EAF manuelle"},{"$f":"Menus!$A$3","v":"AO - SANS hébergement"},null,"EC EAF manuelle — AO - SANS hébergement — ",{"$f":"IFERROR(VLOOKUP(A60,'Info - Valeurs d''ajustement'!$A$42:$D$48,3,FALSE),0)","v":0},0]
[{"$f":"Menus!$A$15","v":"EC EAF manuelle"},{"$f":"Menus!$A$4","v":"ERTS (gré à gré)"},{"$f":"Menus!$A$39","v":"Adaptation des véhicules et ÉPI"},"EC EAF manuelle — ERTS (gré à gré) — Adaptation des véhicules et ÉPI",{"$f":"VLOOKUP(A61,'Info - Valeurs d''ajustement'!$A$14:$J$21,5,FALSE)","v":0},0]
[{"$f":"Menus!$A$15","v":"EC EAF manuelle"},{"$f":"Menus!$A$4","v":"ERTS (gré à gré)"},null,"EC EAF manuelle — ERTS (gré à gré) — ",{"$f":"IFERROR(VLOOKUP(A62,'Info - Valeurs d''ajustement'!$A$14:$I$20,4,FALSE),0)","v":0},0]
[{"$f":"Menus!$A$15","v":"EC EAF manuelle"},{"$f":"Menus!$A$4","v":"ERTS (gré à gré)"},null,"EC EAF manuelle — ERTS (gré à gré) — ",{"$f":"IFERROR(VLOOKUP(A63,'Info - Valeurs d''ajustement'!$A$14:$I$20,6,FALSE),0)","v":0},0]
[{"$f":"Menus!$A$16","v":"EC EAF mécanisée"},{"$f":"Menus!$A$2","v":"AO - AVEC hébergement"},{"$f":"Menus!$A$42","v":"Adaptation des véhicules et ÉPI"},{"$f":"CONCATENATE(A64,\" — \",B64,\" — \",C64)","v":"EC EAF mécanisée — AO - AVEC hébergement — Adaptation des véhicules et ÉPI"},{"$f":"IFERROR(VLOOKUP(A64,'Info - Valeurs d''ajustement'!$A$29:$F$35,4,FALSE),0)","v":0},{"$f":"ROUND(E64,4)","v":0}]
[{"$f":"Menus!$A$16","v":"EC EAF mécanisée"},{"$f":"Menus!$A$2","v":"AO - AVEC hébergement"},null,{"$f":"CONCATENATE(A65,\" — \",B65,\" — \",C65)","v":"EC EAF mécanisée — AO - AVEC hébergement — "},{"$f":"IFERROR(VLOOKUP(A65,'Info - Valeurs d''ajustement'!$A$29:$F$35,3,FALSE),0)","v":0},0]
[{"$f":"Menus!$A$16","v":"EC EAF mécanisée"},{"$f":"Menus!$A$3","v":"AO - SANS hébergement"},{"$f":"Menus!$A$42","v":"Adaptation des véhicules et ÉPI"},"EC EAF mécanisée — AO - SANS hébergement — Adaptation des véhicules et ÉPI",{"$f":"IFERROR(VLOOKUP(A66,'Info - Valeurs d''ajustement'!$A$42:$D$48,4,FALSE),0)","v":0},0]
[{"$f":"Menus!$A$16","v":"EC EAF mécanisée"},{"$f":"Menus!$A$3","v":"AO - SANS hébergement"},null,"EC EAF mécanisée — AO - SANS hébergement — ",{"$f":"IFERROR(VLOOKUP(A67,'Info - Valeurs d''ajustement'!$A$42:$D$48,3,FALSE),0)","v":0},0]
[{"$f":"Menus!$A$16","v":"EC EAF mécanisée"},{"$f":"Menus!$A$4","v":"ERTS (gré à gré)"},{"$f":"Menus!$A$39","v":"Adaptation des véhicules et ÉPI"},"EC EAF mécanisée — ERTS (gré à gré) — Adaptation des véhicules et ÉPI",{"$f":"VLOOKUP(A68,'Info - Valeurs d''ajustement'!$A$14:$J$21,5,FALSE)","v":0},0]
[{"$f":"Menus!$A$16","v":"EC EAF mécanisée"},{"$f":"Menus!$A$4","v":"ERTS (gré à gré)"},null,"EC EAF mécanisée — ERTS (gré à gré) — ",{"$f":"VLOOKUP(A69,'Info - Valeurs d''ajustement'!$A$14:$I$20,4,FALSE)","v":0},0]
[{"$f":"Menus!$A$16","v":"EC EAF mécanisée"},{"$f":"Menus!$A$4","v":"ERTS (gré à gré)"},null,"EC EAF mécanisée — ERTS (gré à gré) — ",{"$f":"VLOOKUP(A70,'Info - Valeurs d''ajustement'!$A$14:$I$20,6,FALSE)","v":0},0]
[{"$f":"Menus!$A$17","v":"Éducation de peuplement"},{"$f":"Menus!$A$2","v":"AO - AVEC hébergement"},{"$f":"Menus!$A$42","v":"Adaptation des véhicules et ÉPI"},"Éducation de peuplement — AO - AVEC hébergement — Adaptation des véhicules et ÉPI",{"$f":"VLOOKUP(A71,'Info - Valeurs d''ajustement'!$A$29:$F$35,4,FALSE)","v":0},0]
[{"$f":"Menus!$A$17","v":"Éducation de peuplement"},{"$f":"Menus!$A$2","v":"AO - AVEC hébergement"},null,"Éducation de peuplement — AO - AVEC hébergement — ",{"$f":"VLOOKUP(A72,'Info - Valeurs d''ajustement'!$A$29:$F$35,3,FALSE)","v":0},0]
[{"$f":"Menus!$A$17","v":"Éducation de peuplement"},{"$f":"Menus!$A$3","v":"AO - SANS hébergement"},{"$f":"Menus!$A$42","v":"Adaptation des véhicules et ÉPI"},"Éducation de peuplement — AO - SANS hébergement — Adaptation des véhicules et ÉPI",{"$f":"VLOOKUP(A73,'Info - Valeurs d''ajustement'!$A$42:$D$48,4,FALSE)","v":0},0]
[{"$f":"Menus!$A$17","v":"Éducation de peuplement"},{"$f":"Menus!$A$3","v":"AO - SANS hébergement"},null,"Éducation de peuplement — AO - SANS hébergement — ",{"$f":"VLOOKUP(A74,'Info - Valeurs d''ajustement'!$A$42:$D$48,3,FALSE)","v":0},0]
[{"$f":"Menus!$A$17","v":"Éducation de peuplement"},{"$f":"Menus!$A$4","v":"ERTS (gré à gré)"},{"$f":"Menus!$A$39","v":"Adaptation des véhicules et ÉPI"},"Éducation de peuplement — ERTS (gré à gré) — Adaptation des véhicules et ÉPI",{"$f":"VLOOKUP(A75,'Info - Valeurs d''ajustement'!$A$14:$J$21,5,FALSE)","v":2.8400000000000002E-2},2.8400000000000002E-2]
[{"$f":"Menus!$A$17","v":"Éducation de peuplement"},{"$f":"Menus!$A$4","v":"ERTS (gré à gré)"},null,"Éducation de peuplement — ERTS (gré à gré) — ",{"$f":"VLOOKUP(A76,'Info - Valeurs d''ajustement'!$A$14:$I$20,4,FALSE)","v":0},0]
[{"$f":"Menus!$A$17","v":"Éducation de peuplement"},{"$f":"Menus!$A$4","v":"ERTS (gré à gré)"},null,"Éducation de peuplement — ERTS (gré à gré) — ",{"$f":"VLOOKUP(A77,'Info - Valeurs d''ajustement'!$A$14:$I$20,6,FALSE)","v":0},{"$f":"ROUND(E77,4)+F76","v":0}]
[{"$f":"Menus!$A$18","v":"Inventaire avant traitement"},{"$f":"Menus!$A$2","v":"AO - AVEC hébergement"},{"$f":"Menus!$A$42","v":"Adaptation des véhicules et ÉPI"},"Inventaire avant traitement — AO - AVEC hébergement — Adaptation des véhicules et ÉPI",{"$f":"VLOOKUP(A78,'Info - Valeurs d''ajustement'!$A$29:$F$35,4,FALSE)","v":0},0]
[{"$f":"Menus!$A$18","v":"Inventaire avant traitement"},{"$f":"Menus!$A$2","v":"AO - AVEC hébergement"},null,"Inventaire avant traitement — AO - AVEC hébergement — ",{"$f":"VLOOKUP(A79,'Info - Valeurs d''ajustement'!$A$29:$F$35,3,FALSE)","v":0},0]
[{"$f":"Menus!$A$18","v":"Inventaire avant traitement"},{"$f":"Menus!$A$3","v":"AO - SANS hébergement"},{"$f":"Menus!$A$42","v":"Adaptation des véhicules et ÉPI"},"Inventaire avant traitement — AO - SANS hébergement — Adaptation des véhicules et ÉPI",{"$f":"VLOOKUP(A80,'Info - Valeurs d''ajustement'!$A$42:$D$48,4,FALSE)","v":0},0]
[{"$f":"Menus!$A$18","v":"Inventaire avant traitement"},{"$f":"Menus!$A$3","v":"AO - SANS hébergement"},null,"Inventaire avant traitement — AO - SANS hébergement — ",{"$f":"VLOOKUP(A81,'Info - Valeurs d''ajustement'!$A$42:$D$48,3,FALSE)","v":0},0]
[{"$f":"Menus!$A$18","v":"Inventaire avant traitement"},{"$f":"Menus!$A$4","v":"ERTS (gré à gré)"},{"$f":"Menus!$A$39","v":"Adaptation des véhicules et ÉPI"},"Inventaire avant traitement — ERTS (gré à gré) — Adaptation des véhicules et ÉPI",{"$f":"VLOOKUP(A82,'Info - Valeurs d''ajustement'!$A$14:$J$21,5,FALSE)","v":2.3099999999999999E-2},2.3099999999999999E-2]
[{"$f":"Menus!$A$18","v":"Inventaire avant traitement"},{"$f":"Menus!$A$4","v":"ERTS (gré à gré)"},null,"Inventaire avant traitement — ERTS (gré à gré) — ",{"$f":"VLOOKUP(A83,'Info - Valeurs d''ajustement'!$A$14:$I$20,4,FALSE)","v":0},0]
[{"$f":"Menus!$A$18","v":"Inventaire avant traitement"},{"$f":"Menus!$A$4","v":"ERTS (gré à gré)"},null,"Inventaire avant traitement — ERTS (gré à gré) — ",{"$f":"VLOOKUP(A84,'Info - Valeurs d''ajustement'!$A$14:$I$20,6,FALSE)","v":0},0]
[{"$f":"Menus!$A$19","v":"Martelage"},{"$f":"Menus!$A$2","v":"AO - AVEC hébergement"},{"$f":"Menus!$A$42","v":"Adaptation des véhicules et ÉPI"},"Martelage — AO - AVEC hébergement — Adaptation des véhicules et ÉPI",{"$f":"VLOOKUP(A85,'Info - Valeurs d''ajustement'!$A$29:$F$35,4,FALSE)","v":0},0]
[{"$f":"Menus!$A$19","v":"Martelage"},{"$f":"Menus!$A$2","v":"AO - AVEC hébergement"},null,"Martelage — AO - AVEC hébergement — ",{"$f":"VLOOKUP(A86,'Info - Valeurs d''ajustement'!$A$29:$F$35,3,FALSE)","v":0},0]
[{"$f":"Menus!$A$19","v":"Martelage"},{"$f":"Menus!$A$3","v":"AO - SANS hébergement"},{"$f":"Menus!$A$42","v":"Adaptation des véhicules et ÉPI"},"Martelage — AO - SANS hébergement — Adaptation des véhicules et ÉPI",{"$f":"VLOOKUP(A87,'Info - Valeurs d''ajustement'!$A$42:$D$48,4,FALSE)","v":0},0]
[{"$f":"Menus!$A$19","v":"Martelage"},{"$f":"Menus!$A$3","v":"AO - SANS hébergement"},null,"Martelage — AO - SANS hébergement — ",{"$f":"VLOOKUP(A88,'Info - Valeurs d''ajustement'!$A$42:$D$48,3,FALSE)","v":0},0]
[{"$f":"Menus!$A$19","v":"Martelage"},{"$f":"Menus!$A$4","v":"ERTS (gré à gré)"},{"$f":"Menus!$A$39","v":"Adaptation des véhicules et ÉPI"},"Martelage — ERTS (gré à gré) — Adaptation des véhicules et ÉPI",{"$f":"VLOOKUP(A89,'Info - Valeurs d''ajustement'!$A$14:$J$21,5,FALSE)","v":3.9600000000000003E-2},3.9600000000000003E-2]
[{"$f":"Menus!$A$19","v":"Martelage"},{"$f":"Menus!$A$4","v":"ERTS (gré à gré)"},null,"Martelage — ERTS (gré à gré) — ",{"$f":"VLOOKUP(A90,'Info - Valeurs d''ajustement'!$A$14:$I$20,4,FALSE)","v":0},0]
[{"$f":"Menus!$A$19","v":"Martelage"},{"$f":"Menus!$A$4","v":"ERTS (gré à gré)"},null,"Martelage — ERTS (gré à gré) — ",{"$f":"VLOOKUP(A91,'Info - Valeurs d''ajustement'!$A$14:$I$20,6,FALSE)","v":0},0]
[{"$f":"Menus!$A$20","v":"Régénération artificielle"},{"$f":"Menus!$A$2","v":"AO - AVEC hébergement"},{"$f":"Menus!$A$42","v":"Adaptation des véhicules et ÉPI"},"Régénération artificielle — AO - AVEC hébergement — Adaptation des véhicules et ÉPI",{"$f":"VLOOKUP(A92,'Info - Valeurs d''ajustement'!$A$29:$F$35,4,FALSE)","v":0},0]
[{"$f":"Menus!$A$20","v":"Régénération artificielle"},{"$f":"Menus!$A$2","v":"AO - AVEC hébergement"},null,"Régénération artificielle — AO - AVEC hébergement — ",{"$f":"VLOOKUP(A93,'Info - Valeurs d''ajustement'!$A$29:$F$35,3,FALSE)","v":0},0]
[{"$f":"Menus!$A$20","v":"Régénération artificielle"},{"$f":"Menus!$A$3","v":"AO - SANS hébergement"},{"$f":"Menus!$A$42","v":"Adaptation des véhicules et ÉPI"},"Régénération artificielle — AO - SANS hébergement — Adaptation des véhicules et ÉPI",{"$f":"VLOOKUP(A94,'Info - Valeurs d''ajustement'!$A$42:$D$48,4,FALSE)","v":0},0]
[{"$f":"Menus!$A$20","v":"Régénération artificielle"},{"$f":"Menus!$A$3","v":"AO - SANS hébergement"},null,"Régénération artificielle — AO - SANS hébergement — ",{"$f":"VLOOKUP(A95,'Info - Valeurs d''ajustement'!$A$42:$D$48,3,FALSE)","v":0},0]
[{"$f":"Menus!$A$20","v":"Régénération artificielle"},{"$f":"Menus!$A$4","v":"ERTS (gré à gré)"},{"$f":"Menus!$A$39","v":"Adaptation des véhicules et ÉPI"},"Régénération artificielle — ERTS (gré à gré) — Adaptation des véhicules et ÉPI",{"$f":"VLOOKUP(A96,'Info - Valeurs d''ajustement'!$A$14:$J$21,5,FALSE)","v":7.3000000000000001E-3},{"$f":"ROUND(E96,4)","v":7.3000000000000001E-3}]
[{"$f":"Menus!$A$20","v":"Régénération artificielle"},{"$f":"Menus!$A$4","v":"ERTS (gré à gré)"},null,"Régénération artificielle — ERTS (gré à gré) — ",{"$f":"VLOOKUP(A97,'Info - Valeurs d''ajustement'!$A$14:$I$20,4,FALSE)","v":0},0]
[{"$f":"Menus!$A$20","v":"Régénération artificielle"},{"$f":"Menus!$A$4","v":"ERTS (gré à gré)"},null,"Régénération artificielle — ERTS (gré à gré) — ",{"$f":"VLOOKUP(A98,'Info - Valeurs d''ajustement'!$A$14:$I$20,6,FALSE)","v":0},{"$f":"ROUND(E98,4)+F97","v":0}]
[{"$f":"Menus!$A$21","v":"Traitements du site"},{"$f":"Menus!$A$2","v":"AO - AVEC hébergement"},{"$f":"Menus!$A$42","v":"Adaptation des véhicules et ÉPI"},"Traitements du site — AO - AVEC hébergement — Adaptation des véhicules et ÉPI",{"$f":"VLOOKUP(A99,'Info - Valeurs d''ajustement'!$A$29:$F$35,4,FALSE)","v":0},0]
[{"$f":"Menus!$A$21","v":"Traitements du site"},{"$f":"Menus!$A$2","v":"AO - AVEC hébergement"},null,"Traitements du site — AO - AVEC hébergement — ",{"$f":"VLOOKUP(A100,'Info - Valeurs d''ajustement'!$A$29:$F$35,3,FALSE)","v":0},0]
[{"$f":"Menus!$A$21","v":"Traitements du site"},{"$f":"Menus!$A$3","v":"AO - SANS hébergement"},{"$f":"Menus!$A$42","v":"Adaptation des véhicules et ÉPI"},"Traitements du site — AO - SANS hébergement — Adaptation des véhicules et ÉPI",{"$f":"VLOOKUP(A101,'Info - Valeurs d''ajustement'!$A$42:$D$48,4,FALSE)","v":0},0]
[{"$f":"Menus!$A$21","v":"Traitements du site"},{"$f":"Menus!$A$3","v":"AO - SANS hébergement"},null,"Traitements du site — AO - SANS hébergement — ",{"$f":"VLOOKUP(A102,'Info - Valeurs d''ajustement'!$A$42:$D$48,3,FALSE)","v":0},0]
[{"$f":"Menus!$A$21","v":"Traitements du site"},{"$f":"Menus!$A$4","v":"ERTS (gré à gré)"},{"$f":"Menus!$A$39","v":"Adaptation des véhicules et ÉPI"},"Traitements du site — ERTS (gré à gré) — Adaptation des véhicules et ÉPI",{"$f":"VLOOKUP(A103,'Info - Valeurs d''ajustement'!$A$14:$J$21,5,FALSE)","v":0},0]
[{"$f":"Menus!$A$21","v":"Traitements du site"},{"$f":"Menus!$A$4","v":"ERTS (gré à gré)"},null,"Traitements du site — ERTS (gré à gré) — ",{"$f":"VLOOKUP(A104,'Info - Valeurs d''ajustement'!$A$14:$I$20,4,FALSE)","v":0},0]
[{"$f":"Menus!$A$21","v":"Traitements du site"},{"$f":"Menus!$A$4","v":"ERTS (gré à gré)"},null,"Traitements du site — ERTS (gré à gré) — ",{"$f":"VLOOKUP(A105,'Info - Valeurs d''ajustement'!$A$14:$I$20,6,FALSE)","v":0},0]
[{"$f":"Menus!$A$22","v":"Travaux techniques autres"},{"$f":"Menus!$A$2","v":"AO - AVEC hébergement"},{"$f":"Menus!$A$42","v":"Adaptation des véhicules et ÉPI"},"Travaux techniques autres — AO - AVEC hébergement — Adaptation des véhicules et ÉPI",{"$f":"VLOOKUP(A106,'Info - Valeurs d''ajustement'!$A$29:$F$35,4,FALSE)","v":0},0]
[{"$f":"Menus!$A$22","v":"Travaux techniques autres"},{"$f":"Menus!$A$2","v":"AO - AVEC hébergement"},null,"Travaux techniques autres — AO - AVEC hébergement — ",{"$f":"VLOOKUP(A107,'Info - Valeurs d''ajustement'!$A$29:$F$35,3,FALSE)","v":0},0]
[{"$f":"Menus!$A$22","v":"Travaux techniques autres"},{"$f":"Menus!$A$3","v":"AO - SANS hébergement"},{"$f":"Menus!$A$42","v":"Adaptation des véhicules et ÉPI"},"Travaux techniques autres — AO - SANS hébergement — Adaptation des véhicules et ÉPI",{"$f":"VLOOKUP(A108,'Info - Valeurs d''ajustement'!$A$42:$D$48,4,FALSE)","v":0},0]
[{"$f":"Menus!$A$22","v":"Travaux techniques autres"},{"$f":"Menus!$A$3","v":"AO - SANS hébergement"},null,"Travaux techniques autres — AO - SANS hébergement — ",{"$f":"VLOOKUP(A109,'Info - Valeurs d''ajustement'!$A$42:$D$48,3,FALSE)","v":0},0]
[{"$f":"Menus!$A$22","v":"Travaux techniques autres"},{"$f":"Menus!$A$4","v":"ERTS (gré à gré)"},{"$f":"Menus!$A$39","v":"Adaptation des véhicules et ÉPI"},"Travaux techniques autres — ERTS (gré à gré) — Adaptation des véhicules et ÉPI",{"$f":"VLOOKUP(A110,'Info - Valeurs d''ajustement'!$A$14:$J$21,5,FALSE)","v":0},0]
[{"$f":"Menus!$A$22","v":"Travaux techniques autres"},{"$f":"Menus!$A$4","v":"ERTS (gré à gré)"},null,"Travaux techniques autres — ERTS (gré à gré) — ",{"$f":"VLOOKUP(A111,'Info - Valeurs d''ajustement'!$A$14:$I$20,4,FALSE)","v":0},0]
[{"$f":"Menus!$A$22","v":"Travaux techniques autres"},{"$f":"Menus!$A$4","v":"ERTS (gré à gré)"},null,"Travaux techniques autres — ERTS (gré à gré) — ",{"$f":"VLOOKUP(A112,'Info - Valeurs d''ajustement'!$A$14:$I$20,6,FALSE)","v":0},0]
[]
["Ajustement 4","Hébergement des travailleurs"]
["Famille ou type","Mode d'attribution","Type d'hébergement","Concatener (RechercheV)","Valeur brute","Valeur nette"]
[{"$f":"Menus!$A$15","v":"EC EAF manuelle"},{"$f":"Menus!$A$2","v":"AO - AVEC hébergement"},{"$f":"Menus!$A$31","v":"Camp forestier"},{"$f":"CONCATENATE(A116,\" — \",B116,\" — \",C116)","v":"EC EAF manuelle — AO - AVEC hébergement — Camp forestier"},{"$f":"IFERROR(VLOOKUP(A116,'Info - Valeurs d''ajustement'!$A$29:$F$35,6,FALSE),0)","v":0},{"$f":"ROUND(E116,4)","v":0}]
[{"$f":"Menus!$A$15","v":"EC EAF manuelle"},{"$f":"Menus!$A$2","v":"AO - AVEC hébergement"},{"$f":"Menus!$A$32","v":"Hébergement adéquat (hôtel, pourvoirie ou autre unité individuelle)"},"EC EAF manuelle — AO - AVEC hébergement — Hébergement adéquat (hôtel, pourvoirie ou autre unité individuelle)",{"$f":"IFERROR(VLOOKUP(A117,'Info - Valeurs d''ajustement'!$A$29:$F$35,5,FALSE),0)","v":0},0]
[{"$f":"Menus!$A$15","v":"EC EAF manuelle"},{"$f":"Menus!$A$4","v":"ERTS (gré à gré)"},{"$f":"Menus!$A$31","v":"Camp forestier"},"EC EAF manuelle — ERTS (gré à gré) — Camp forestier",{"$f":"IFERROR(VLOOKUP(A118,'Info - Valeurs d''ajustement'!$A$14:$J$21,8,FALSE),0)","v":3.7499999999999999E-2},3.7499999999999999E-2]
[{"$f":"Menus!$A$15","v":"EC EAF manuelle"},{"$f":"Menus!$A$4","v":"ERTS (gré à gré)"},{"$f":"Menus!$A$32","v":"Hébergement adéquat (hôtel, pourvoirie ou autre unité individuelle)"},"EC EAF manuelle — ERTS (gré à gré) — Hébergement adéquat (hôtel, pourvoirie ou autre unité individuelle)",{"$f":"IFERROR(VLOOKUP(A119,'Info - Valeurs d''ajustement'!$A$14:$J$21,7,FALSE),0)","v":3.7499999999999999E-2},3.7499999999999999E-2]
[{"$f":"Menus!$A$16","v":"EC EAF mécanisée"},{"$f":"Menus!$A$2","v":"AO - AVEC hébergement"},{"$f":"Menus!$A$31","v":"Camp forestier"},{"$f":"CONCATENATE(A120,\" — \",B120,\" — \",C120)","v":"EC EAF mécanisée — AO - AVEC hébergement — Camp forestier"},{"$f":"IFERROR(VLOOKUP(A120,'Info - Valeurs d''ajustement'!$A$29:$F$35,6,FALSE),0)","v":0},{"$f":"ROUND(E120,4)","v":0}]
[{"$f":"Menus!$A$16","v":"EC EAF mécanisée"},{"$f":"Menus!$A$2","v":"AO - AVEC hébergement"},{"$f":"Menus!$A$32","v":"Hébergement adéquat (hôtel, pourvoirie ou autre unité individuelle)"},"EC EAF mécanisée — AO - AVEC hébergement — Hébergement adéquat (hôtel, pourvoirie ou autre unité individuelle)",{"$f":"IFERROR(VLOOKUP(A121,'Info - Valeurs d''ajustement'!$A$29:$F$35,5,FALSE),0)","v":0},0]
[{"$f":"Menus!$A$16","v":"EC EAF mécanisée"},{"$f":"Menus!$A$4","v":"ERTS (gré à gré)"},{"$f":"Menus!$A$31","v":"Camp forestier"},"EC EAF mécanisée — ERTS (gré à gré) — Camp forestier",{"$f":"VLOOKUP(A122,'Info - Valeurs d''ajustement'!$A$14:$J$21,8,FALSE)","v":3.7499999999999999E-2},3.7499999999999999E-2]
[{"$f":"Menus!$A$16","v":"EC EAF mécanisée"},{"$f":"Menus!$A$4","v":"ERTS (gré à gré)"},{"$f":"Menus!$A$32","v":"Hébergement adéquat (hôtel, pourvoirie ou autre unité individuelle)"},"EC EAF mécanisée — ERTS (gré à gré) — Hébergement adéquat (hôtel, pourvoirie ou autre unité individuelle)",{"$f":"VLOOKUP(A123,'Info - Valeurs d''ajustement'!$A$14:$J$21,7,FALSE)","v":3.7499999999999999E-2},3.7499999999999999E-2]
[{"$f":"Menus!$A$17","v":"Éducation de peuplement"},{"$f":"Menus!$A$2","v":"AO - AVEC hébergement"},{"$f":"Menus!$A$31","v":"Camp forestier"},"Éducation de peuplement — AO - AVEC hébergement — Camp forestier",{"$f":"VLOOKUP(A124,'Info - Valeurs d''ajustement'!$A$29:$F$35,6,FALSE)","v":0},0]
[{"$f":"Menus!$A$17","v":"Éducation de peuplement"},{"$f":"Menus!$A$2","v":"AO - AVEC hébergement"},{"$f":"Menus!$A$32","v":"Hébergement adéquat (hôtel, pourvoirie ou autre unité individuelle)"},"Éducation de peuplement — AO - AVEC hébergement — Hébergement adéquat (hôtel, pourvoirie ou autre unité individuelle)",{"$f":"VLOOKUP(A125,'Info - Valeurs d''ajustement'!$A$29:$F$35,5,FALSE)","v":0},0]
[{"$f":"Menus!$A$17","v":"Éducation de peuplement"},{"$f":"Menus!$A$4","v":"ERTS (gré à gré)"},{"$f":"Menus!$A$31","v":"Camp forestier"},"Éducation de peuplement — ERTS (gré à gré) — Camp forestier",{"$f":"VLOOKUP(A126,'Info - Valeurs d''ajustement'!$A$14:$J$21,8,FALSE)","v":5.7599999999999998E-2},5.7599999999999998E-2]
[{"$f":"Menus!$A$17","v":"Éducation de peuplement"},{"$f":"Menus!$A$4","v":"ERTS (gré à gré)"},{"$f":"Menus!$A$32","v":"Hébergement adéquat (hôtel, pourvoirie ou autre unité individuelle)"},"Éducation de peuplement — ERTS (gré à gré) — Hébergement adéquat (hôtel, pourvoirie ou autre unité individuelle)",{"$f":"VLOOKUP(A127,'Info - Valeurs d''ajustement'!$A$14:$J$21,7,FALSE)","v":0.23019999999999999},0.23019999999999999]
[{"$f":"Menus!$A$18","v":"Inventaire avant traitement"},{"$f":"Menus!$A$2","v":"AO - AVEC hébergement"},{"$f":"Menus!$A$31","v":"Camp forestier"},"Inventaire avant traitement — AO - AVEC hébergement — Camp forestier",{"$f":"VLOOKUP(A128,'Info - Valeurs d''ajustement'!$A$29:$F$35,6,FALSE)","v":0},0]
[{"$f":"Menus!$A$18","v":"Inventaire avant traitement"},{"$f":"Menus!$A$2","v":"AO - AVEC hébergement"},{"$f":"Menus!$A$32","v":"Hébergement adéquat (hôtel, pourvoirie ou autre unité individuelle)"},"Inventaire avant traitement — AO - AVEC hébergement — Hébergement adéquat (hôtel, pourvoirie ou autre unité individuelle)",{"$f":"VLOOKUP(A129,'Info - Valeurs d''ajustement'!$A$29:$F$35,5,FALSE)","v":0},0]
[{"$f":"Menus!$A$18","v":"Inventaire avant traitement"},{"$f":"Menus!$A$4","v":"ERTS (gré à gré)"},{"$f":"Menus!$A$31","v":"Camp forestier"},"Inventaire avant traitement — ERTS (gré à gré) — Camp forestier",{"$f":"VLOOKUP(A130,'Info - Valeurs d''ajustement'!$A$14:$J$21,8,FALSE)","v":4.0399999999999998E-2},4.0399999999999998E-2]
[{"$f":"Menus!$A$18","v":"Inventaire avant traitement"},{"$f":"Menus!$A$4","v":"ERTS (gré à gré)"},{"$f":"Menus!$A$32","v":"Hébergement adéquat (hôtel, pourvoirie ou autre unité individuelle)"},"Inventaire avant traitement — ERTS (gré à gré) — Hébergement adéquat (hôtel, pourvoirie ou autre unité individuelle)",{"$f":"VLOOKUP(A131,'Info - Valeurs d''ajustement'!$A$14:$J$21,7,FALSE)","v":0.16159999999999999},0.16159999999999999]
[{"$f":"Menus!$A$19","v":"Martelage"},{"$f":"Menus!$A$2","v":"AO - AVEC hébergement"},{"$f":"Menus!$A$31","v":"Camp forestier"},"Martelage — AO - AVEC hébergement — Camp forestier",{"$f":"VLOOKUP(A132,'Info - Valeurs d''ajustement'!$A$29:$F$35,6,FALSE)","v":0},0]
[{"$f":"Menus!$A$19","v":"Martelage"},{"$f":"Menus!$A$2","v":"AO - AVEC hébergement"},{"$f":"Menus!$A$32","v":"Hébergement adéquat (hôtel, pourvoirie ou autre unité individuelle)"},"Martelage — AO - AVEC hébergement — Hébergement adéquat (hôtel, pourvoirie ou autre unité individuelle)",{"$f":"VLOOKUP(A133,'Info - Valeurs d''ajustement'!$A$29:$F$35,5,FALSE)","v":0},0]
[{"$f":"Menus!$A$19","v":"Martelage"},{"$f":"Menus!$A$4","v":"ERTS (gré à gré)"},{"$f":"Menus!$A$31","v":"Camp forestier"},"Martelage — ERTS (gré à gré) — Camp forestier",{"$f":"VLOOKUP(A134,'Info - Valeurs d''ajustement'!$A$14:$J$21,8,FALSE)","v":2.7699999999999999E-2},2.7699999999999999E-2]
[{"$f":"Menus!$A$19","v":"Martelage"},{"$f":"Menus!$A$4","v":"ERTS (gré à gré)"},{"$f":"Menus!$A$32","v":"Hébergement adéquat (hôtel, pourvoirie ou autre unité individuelle)"},"Martelage — ERTS (gré à gré) — Hébergement adéquat (hôtel, pourvoirie ou autre unité individuelle)",{"$f":"VLOOKUP(A135,'Info - Valeurs d''ajustement'!$A$14:$J$21,7,FALSE)","v":0.111},0.111]
[{"$f":"Menus!$A$20","v":"Régénération artificielle"},{"$f":"Menus!$A$2","v":"AO - AVEC hébergement"},{"$f":"Menus!$A$31","v":"Camp forestier"},"Régénération artificielle — AO - AVEC hébergement — Camp forestier",{"$f":"VLOOKUP(A136,'Info - Valeurs d''ajustement'!$A$29:$F$35,6,FALSE)","v":0},0]
[{"$f":"Menus!$A$20","v":"Régénération artificielle"},{"$f":"Menus!$A$2","v":"AO - AVEC hébergement"},{"$f":"Menus!$A$32","v":"Hébergement adéquat (hôtel, pourvoirie ou autre unité individuelle)"},"Régénération artificielle — AO - AVEC hébergement — Hébergement adéquat (hôtel, pourvoirie ou autre unité individuelle)",{"$f":"VLOOKUP(A137,'Info - Valeurs d''ajustement'!$A$29:$F$35,5,FALSE)","v":0},0]
[{"$f":"Menus!$A$20","v":"Régénération artificielle"},{"$f":"Menus!$A$4","v":"ERTS (gré à gré)"},{"$f":"Menus!$A$31","v":"Camp forestier"},"Régénération artificielle — ERTS (gré à gré) — Camp forestier",{"$f":"VLOOKUP(A138,'Info - Valeurs d''ajustement'!$A$14:$J$21,8,FALSE)","v":5.2600000000000001E-2},5.2600000000000001E-2]
[{"$f":"Menus!$A$20","v":"Régénération artificielle"},{"$f":"Menus!$A$4","v":"ERTS (gré à gré)"},{"$f":"Menus!$A$32","v":"Hébergement adéquat (hôtel, pourvoirie ou autre unité individuelle)"},"Régénération artificielle — ERTS (gré à gré) — Hébergement adéquat (hôtel, pourvoirie ou autre unité individuelle)",{"$f":"VLOOKUP(A139,'Info - Valeurs d''ajustement'!$A$14:$J$21,7,FALSE)","v":0.21029999999999999},0.21029999999999999]
[{"$f":"Menus!$A$21","v":"Traitements du site"},{"$f":"Menus!$A$2","v":"AO - AVEC hébergement"},{"$f":"Menus!$A$31","v":"Camp forestier"},"Traitements du site — AO - AVEC hébergement — Camp forestier",{"$f":"VLOOKUP(A140,'Info - Valeurs d''ajustement'!$A$29:$F$35,6,FALSE)","v":0},0]
[{"$f":"Menus!$A$21","v":"Traitements du site"},{"$f":"Menus!$A$2","v":"AO - AVEC hébergement"},{"$f":"Menus!$A$32","v":"Hébergement adéquat (hôtel, pourvoirie ou autre unité individuelle)"},"Traitements du site — AO - AVEC hébergement — Hébergement adéquat (hôtel, pourvoirie ou autre unité individuelle)",{"$f":"VLOOKUP(A141,'Info - Valeurs d''ajustement'!$A$29:$F$35,5,FALSE)","v":0},0]
[{"$f":"Menus!$A$21","v":"Traitements du site"},{"$f":"Menus!$A$4","v":"ERTS (gré à gré)"},{"$f":"Menus!$A$31","v":"Camp forestier"},"Traitements du site — ERTS (gré à gré) — Camp forestier",{"$f":"VLOOKUP(A142,'Info - Valeurs d''ajustement'!$A$14:$J$21,8,FALSE)","v":2.3099999999999999E-2},2.3099999999999999E-2]
[{"$f":"Menus!$A$21","v":"Traitements du site"},{"$f":"Menus!$A$4","v":"ERTS (gré à gré)"},{"$f":"Menus!$A$32","v":"Hébergement adéquat (hôtel, pourvoirie ou autre unité individuelle)"},"Traitements du site — ERTS (gré à gré) — Hébergement adéquat (hôtel, pourvoirie ou autre unité individuelle)",{"$f":"VLOOKUP(A143,'Info - Valeurs d''ajustement'!$A$14:$J$21,7,FALSE)","v":9.2499999999999999E-2},9.2499999999999999E-2]
[{"$f":"Menus!$A$22","v":"Travaux techniques autres"},{"$f":"Menus!$A$2","v":"AO - AVEC hébergement"},{"$f":"Menus!$A$31","v":"Camp forestier"},"Travaux techniques autres — AO - AVEC hébergement — Camp forestier",{"$f":"VLOOKUP(A144,'Info - Valeurs d''ajustement'!$A$29:$F$35,6,FALSE)","v":0},0]
[{"$f":"Menus!$A$22","v":"Travaux techniques autres"},{"$f":"Menus!$A$2","v":"AO - AVEC hébergement"},{"$f":"Menus!$A$32","v":"Hébergement adéquat (hôtel, pourvoirie ou autre unité individuelle)"},"Travaux techniques autres — AO - AVEC hébergement — Hébergement adéquat (hôtel, pourvoirie ou autre unité individuelle)",{"$f":"VLOOKUP(A145,'Info - Valeurs d''ajustement'!$A$29:$F$35,5,FALSE)","v":0},0]
[{"$f":"Menus!$A$22","v":"Travaux techniques autres"},{"$f":"Menus!$A$4","v":"ERTS (gré à gré)"},{"$f":"Menus!$A$31","v":"Camp forestier"},"Travaux techniques autres — ERTS (gré à gré) — Camp forestier",{"$f":"VLOOKUP(A146,'Info - Valeurs d''ajustement'!$A$14:$J$21,8,FALSE)","v":4.0399999999999998E-2},4.0399999999999998E-2]
[{"$f":"Menus!$A$22","v":"Travaux techniques autres"},{"$f":"Menus!$A$4","v":"ERTS (gré à gré)"},{"$f":"Menus!$A$32","v":"Hébergement adéquat (hôtel, pourvoirie ou autre unité individuelle)"},"Travaux techniques autres — ERTS (gré à gré) — Hébergement adéquat (hôtel, pourvoirie ou autre unité individuelle)",{"$f":"VLOOKUP(A147,'Info - Valeurs d''ajustement'!$A$14:$J$21,7,FALSE)","v":0.16159999999999999},0.16159999999999999]
[]
["Ajustement 5 -  Retiré","Manutention des plants"]
["Famille ou type","Mode d'attribution","Concatener (RechercheV)","Valeur brute","Valeur nette"]
[{"$f":"Menus!$A$15","v":"EC EAF manuelle"},{"$f":"Menus!$A$2","v":"AO - AVEC hébergement"},{"$f":"CONCATENATE(A151,\" — \",B151)","v":"EC EAF manuelle — AO - AVEC hébergement"},0,{"$f":"ROUND(D151,4)","v":0}]
[{"$f":"Menus!$A$15","v":"EC EAF manuelle"},{"$f":"Menus!$A$3","v":"AO - SANS hébergement"},"EC EAF manuelle — AO - SANS hébergement",0,0]
[{"$f":"Menus!$A$15","v":"EC EAF manuelle"},{"$f":"Menus!$A$4","v":"ERTS (gré à gré)"},"EC EAF manuelle — ERTS (gré à gré)",{"$f":"VLOOKUP(A153,'Info - Valeurs d''ajustement'!$A$14:$J$21,9,FALSE)","v":0},0]
[{"$f":"Menus!$A$16","v":"EC EAF mécanisée"},{"$f":"Menus!$A$2","v":"AO - AVEC hébergement"},{"$f":"CONCATENATE(A154,\" — \",B154)","v":"EC EAF mécanisée — AO - AVEC hébergement"},0,{"$f":"ROUND(D154,4)","v":0}]
[{"$f":"Menus!$A$16","v":"EC EAF mécanisée"},{"$f":"Menus!$A$3","v":"AO - SANS hébergement"},"EC EAF mécanisée — AO - SANS hébergement",0,0]
[{"$f":"Menus!$A$16","v":"EC EAF mécanisée"},{"$f":"Menus!$A$4","v":"ERTS (gré à gré)"},"EC EAF mécanisée — ERTS (gré à gré)",{"$f":"VLOOKUP(A156,'Info - Valeurs d''ajustement'!$A$14:$J$21,9,FALSE)","v":0},0]
[{"$f":"Menus!$A$17","v":"Éducation de peuplement"},{"$f":"Menus!$A$2","v":"AO - AVEC hébergement"},"Éducation de peuplement — AO - AVEC hébergement",0,0]
[{"$f":"Menus!$A$17","v":"Éducation de peuplement"},{"$f":"Menus!$A$3","v":"AO - SANS hébergement"},"Éducation de peuplement — AO - SANS hébergement",0,0]
[{"$f":"Menus!$A$17","v":"Éducation de peuplement"},{"$f":"Menus!$A$4","v":"ERTS (gré à gré)"},"Éducation de peuplement — ERTS (gré à gré)",{"$f":"VLOOKUP(A159,'Info - Valeurs d''ajustement'!$A$14:$J$21,9,FALSE)","v":0},0]
[{"$f":"Menus!$A$18","v":"Inventaire avant traitement"},{"$f":"Menus!$A$2","v":"AO - AVEC hébergement"},"Inventaire avant traitement — AO - AVEC hébergement",0,0]
[{"$f":"Menus!$A$18","v":"Inventaire avant traitement"},{"$f":"Menus!$A$3","v":"AO - SANS hébergement"},"Inventaire avant traitement — AO - SANS hébergement",0,0]
[{"$f":"Menus!$A$18","v":"Inventaire avant traitement"},{"$f":"Menus!$A$4","v":"ERTS (gré à gré)"},"Inventaire avant traitement — ERTS (gré à gré)",{"$f":"VLOOKUP(A162,'Info - Valeurs d''ajustement'!$A$14:$J$21,9,FALSE)","v":0},0]
[{"$f":"Menus!$A$19","v":"Martelage"},{"$f":"Menus!$A$2","v":"AO - AVEC hébergement"},"Martelage — AO - AVEC hébergement",0,0]
[{"$f":"Menus!$A$19","v":"Martelage"},{"$f":"Menus!$A$3","v":"AO - SANS hébergement"},"Martelage — AO - SANS hébergement",0,0]
[{"$f":"Menus!$A$19","v":"Martelage"},{"$f":"Menus!$A$4","v":"ERTS (gré à gré)"},"Martelage — ERTS (gré à gré)",{"$f":"VLOOKUP(A165,'Info - Valeurs d''ajustement'!$A$14:$J$21,9,FALSE)","v":0},0]
[{"$f":"Menus!$A$20","v":"Régénération artificielle"},{"$f":"Menus!$A$2","v":"AO - AVEC hébergement"},"Régénération artificielle — AO - AVEC hébergement",0,0]
[{"$f":"Menus!$A$20","v":"Régénération artificielle"},{"$f":"Menus!$A$3","v":"AO - SANS hébergement"},"Régénération artificielle — AO - SANS hébergement",0,0]
[{"$f":"Menus!$A$20","v":"Régénération artificielle"},{"$f":"Menus!$A$4","v":"ERTS (gré à gré)"},"Régénération artificielle — ERTS (gré à gré)",{"$f":"VLOOKUP(A168,'Info - Valeurs d''ajustement'!$A$14:$J$21,9,FALSE)","v":0},0]
[{"$f":"Menus!$A$21","v":"Traitements du site"},{"$f":"Menus!$A$2","v":"AO - AVEC hébergement"},"Traitements du site — AO - AVEC hébergement",0,0]
[{"$f":"Menus!$A$21","v":"Traitements du site"},{"$f":"Menus!$A$3","v":"AO - SANS hébergement"},"Traitements du site — AO - SANS hébergement",0,0]
[{"$f":"Menus!$A$21","v":"Traitements du site"},{"$f":"Menus!$A$4","v":"ERTS (gré à gré)"},"Traitements du site — ERTS (gré à gré)",{"$f":"VLOOKUP(A171,'Info - Valeurs d''ajustement'!$A$14:$J$21,9,FALSE)","v":0},0]
[{"$f":"Menus!$A$22","v":"Travaux techniques autres"},{"$f":"Menus!$A$2","v":"AO - AVEC hébergement"},"Travaux techniques autres — AO - AVEC hébergement",0,0]
[{"$f":"Menus!$A$22","v":"Travaux techniques autres"},{"$f":"Menus!$A$3","v":"AO - SANS hébergement"},"Travaux techniques autres — AO - SANS hébergement",0,0]
[{"$f":"Menus!$A$22","v":"Travaux techniques autres"},{"$f":"Menus!$A$4","v":"ERTS (gré à gré)"},"Travaux techniques autres — ERTS (gré à gré)",{"$f":"VLOOKUP(A174,'Info - Valeurs d''ajustement'!$A$14:$J$21,9,FALSE)","v":0},0]
[]
["Ajustement 6",null,"Ajustement pour la hausse des prix - s'applique sur le taux d'exécution avant les ajustements"]
["Famille ou type","Mode d'attribution","Concatener (RechercheV)","Valeur brute","Valeur nette"]
[{"$f":"Menus!$A$15","v":"EC EAF manuelle"},{"$f":"Menus!$A$2","v":"AO - AVEC hébergement"},{"$f":"CONCATENATE(A178,\" — \",B178)","v":"EC EAF manuelle — AO - AVEC hébergement"},0,{"$f":"ROUND(D178,4)","v":0}]
[{"$f":"Menus!$A$15","v":"EC EAF manuelle"},{"$f":"Menus!$A$3","v":"AO - SANS hébergement"},"EC EAF manuelle — AO - SANS hébergement",0,0]
[{"$f":"Menus!$A$15","v":"EC EAF manuelle"},{"$f":"Menus!$A$4","v":"ERTS (gré à gré)"},"EC EAF manuelle — ERTS (gré à gré)",{"$f":"VLOOKUP(A180,'Info - Valeurs d''ajustement'!$A$14:$J$21,10,FALSE)","v":8.6205296859036287E-2},8.6199999999999999E-2]
[{"$f":"Menus!$A$16","v":"EC EAF mécanisée"},{"$f":"Menus!$A$2","v":"AO - AVEC hébergement"},{"$f":"CONCATENATE(A181,\" — \",B181)","v":"EC EAF mécanisée — AO - AVEC hébergement"},0,{"$f":"ROUND(D181,4)","v":0}]
[{"$f":"Menus!$A$16","v":"EC EAF mécanisée"},{"$f":"Menus!$A$3","v":"AO - SANS hébergement"},"EC EAF mécanisée — AO - SANS hébergement",0,0]
[{"$f":"Menus!$A$16","v":"EC EAF mécanisée"},{"$f":"Menus!$A$4","v":"ERTS (gré à gré)"},"EC EAF mécanisée — ERTS (gré à gré)",{"$f":"VLOOKUP(A183,'Info - Valeurs d''ajustement'!$A$14:$J$21,10,FALSE)","v":0.13779819380353625},0.13780000000000001]
[{"$f":"Menus!$A$17","v":"Éducation de peuplement"},{"$f":"Menus!$A$2","v":"AO - AVEC hébergement"},"Éducation de peuplement — AO - AVEC hébergement",0,0]
[{"$f":"Menus!$A$17","v":"Éducation de peuplement"},{"$f":"Menus!$A$3","v":"AO - SANS hébergement"},"Éducation de peuplement — AO - SANS hébergement",0,0]
[{"$f":"Menus!$A$17","v":"Éducation de peuplement"},{"$f":"Menus!$A$4","v":"ERTS (gré à gré)"},"Éducation de peuplement — ERTS (gré à gré)",{"$f":"VLOOKUP(A186,'Info - Valeurs d''ajustement'!$A$14:$J$21,10,FALSE)","v":4.8300000000000003E-2},4.8300000000000003E-2]
[{"$f":"Menus!$A$18","v":"Inventaire avant traitement"},{"$f":"Menus!$A$2","v":"AO - AVEC hébergement"},"Inventaire avant traitement — AO - AVEC hébergement",0,0]
[{"$f":"Menus!$A$18","v":"Inventaire avant traitement"},{"$f":"Menus!$A$3","v":"AO - SANS hébergement"},"Inventaire avant traitement — AO - SANS hébergement",0,0]
[{"$f":"Menus!$A$18","v":"Inventaire avant traitement"},{"$f":"Menus!$A$4","v":"ERTS (gré à gré)"},"Inventaire avant traitement — ERTS (gré à gré)",{"$f":"VLOOKUP(A189,'Info - Valeurs d''ajustement'!$A$14:$J$21,10,FALSE)","v":5.3499999999999999E-2},5.3499999999999999E-2]
[{"$f":"Menus!$A$19","v":"Martelage"},{"$f":"Menus!$A$2","v":"AO - AVEC hébergement"},"Martelage — AO - AVEC hébergement",0,0]
[{"$f":"Menus!$A$19","v":"Martelage"},{"$f":"Menus!$A$3","v":"AO - SANS hébergement"},"Martelage — AO - SANS hébergement",0,0]
[{"$f":"Menus!$A$19","v":"Martelage"},{"$f":"Menus!$A$4","v":"ERTS (gré à gré)"},"Martelage — ERTS (gré à gré)",{"$f":"VLOOKUP(A192,'Info - Valeurs d''ajustement'!$A$14:$J$21,10,FALSE)","v":5.2299999999999999E-2},5.2299999999999999E-2]
[{"$f":"Menus!$A$20","v":"Régénération artificielle"},{"$f":"Menus!$A$2","v":"AO - AVEC hébergement"},"Régénération artificielle — AO - AVEC hébergement",0,0]
[{"$f":"Menus!$A$20","v":"Régénération artificielle"},{"$f":"Menus!$A$3","v":"AO - SANS hébergement"},"Régénération artificielle — AO - SANS hébergement",0,0]
[{"$f":"Menus!$A$20","v":"Régénération artificielle"},{"$f":"Menus!$A$4","v":"ERTS (gré à gré)"},"Régénération artificielle — ERTS (gré à gré)",{"$f":"VLOOKUP(A195,'Info - Valeurs d''ajustement'!$A$14:$J$21,10,FALSE)","v":5.6399999999999999E-2},5.6399999999999999E-2]
[{"$f":"Menus!$A$21","v":"Traitements du site"},{"$f":"Menus!$A$2","v":"AO - AVEC hébergement"},"Traitements du site — AO - AVEC hébergement",0,0]
[{"$f":"Menus!$A$21","v":"Traitements du site"},{"$f":"Menus!$A$3","v":"AO - SANS hébergement"},"Traitements du site — AO - SANS hébergement",0,0]
[{"$f":"Menus!$A$21","v":"Traitements du site"},{"$f":"Menus!$A$4","v":"ERTS (gré à gré)"},"Traitements du site — ERTS (gré à gré)",{"$f":"VLOOKUP(A198,'Info - Valeurs d''ajustement'!$A$14:$J$21,10,FALSE)","v":0.11210000000000001},0.11210000000000001]
[{"$f":"Menus!$A$22","v":"Travaux techniques autres"},{"$f":"Menus!$A$2","v":"AO - AVEC hébergement"},"Travaux techniques autres — AO - AVEC hébergement",0,0]
[{"$f":"Menus!$A$22","v":"Travaux techniques autres"},{"$f":"Menus!$A$3","v":"AO - SANS hébergement"},"Travaux techniques autres — AO - SANS hébergement",0,0]
[{"$f":"Menus!$A$22","v":"Travaux techniques autres"},{"$f":"Menus!$A$4","v":"ERTS (gré à gré)"},"Travaux techniques autres — ERTS (gré à gré)",{"$f":"VLOOKUP(A201,'Info - Valeurs d''ajustement'!$A$14:$J$21,10,FALSE)","v":5.3499999999999999E-2},5.3499999999999999E-2]

{"sheet":"Log","index":7,"n_rows":6,"n_cols":4,"rows_kept":6,"cut":false,"hidden":true,"merged":[]}
["Usager","Accès","OS","Version Excel"]
["Pouliot, Simon (BMMB)","2022-04-27T07:29:02","Windows (64-bit) NT 10.00",16]
["St-Pierre, Stéphane (BMMB)","2022-06-15T13:10:39","Windows (64-bit) NT 10.00",16]
["St-Pierre, Stéphane (BMMB)","2022-06-15T13:59:19","Windows (64-bit) NT 10.00",16]
["Lainesse, Mélissa (BMMB)","2022-09-30T07:47:49","Windows (64-bit) NT 10.00",16]
["Lainesse, Mélissa (BMMB)","2022-10-03T10:15:16","Windows (64-bit) NT 10.00",16]